{"text_format":"3","workbook":"xlsx","n_sheets":3,"sheets":["Tegevuskava andmed","Kiirtegevuskava","Teave"],"not_rendered":{"defined_names":5},"read":"whole","date_system":"1900"}

{"sheet":"Tegevuskava andmed","index":0,"n_rows":13,"n_cols":7,"rows_kept":13,"merged":[[12,1,12,4]]}
["Sellel töölehel saate luua kiirtegevuskava, sisestades tegevuskava andmed tabelisse olulised teetähised või tegevused.\nTöölehe pealkiri on lahtris B1. \nSelle töölehe kasutamise juhised, sealhulgas juhised ekraanilugerite jaoks, leiate töölehelt Teave.\nEdasiste juhiste hankimiseks liikuge veerus A allapoole.","Kiirajakava andmed"]
["Tabelipäised on lahtrites B2–E2. Kindlate üksuste otsimiseks sortige tabelit päisefiltrite abil.\nKiirtegevuskava toimib kõige paremini, kui tabel sorditakse tõusvas järjestuses tähtsus alusel ja seejärel teetähis või tegevus alusel.\nNäidisandmed on tegevuskava andmed tabeli lahtrites B3–E12. \nKui teetähis või tegevus on lõpetatud, värskendage vastavat tulem välja, et kuvada tulemid kiirtegevuskava töölehel. Sisestage \"Muutuseta\", et tõsta esile ilma mõjuta teetähised.\nJärgmise juhise saamiseks liikuge lahtrisse A13.\n","Eesmärk","Teetähis või tegevus","Tähtsus","Tulem",null,"<-- sortige tabel tähtsus alusel ja seejärel teetähis või tegevus alusel, tõusvas järjestuses"]
[null,"Jooksev","Tegevus 1\nPrototüübi valmistamine","1 – kõrge",null,null,"<-- lisage igale lõpetatud teetähisele tulem. Sisestage \"Muutuseta\", et tõsta esile ilma mõjuta teetähised."]
[null,"Kiireloomuline","Tegevus 2\nPrototüübi demonstreerimine","1 – kõrge"]
[null,"Jooksev","Tegevus 6","1 – kõrge"]
[null,"Tulevane","Tegevus 7\nEsimese etapi juurutuse arenduse alltöövõtja leidmine","1 – kõrge"]
[null,"Lõpetatud","Tegevus 9\nEsimene etapp kinnitatud","1 – kõrge","Vähenemine 10%"]
[null,"Tulevane","Tegevus 10","2 – keskmine"]
[null,"Kiireloomuline","Tegevus 8","2 – keskmine"]
[null,"Lõpetatud","Tegevus 3","3 – madal","Muutuseta"]
[null,"Tulevane","Tegevus 4","3 – madal"]
[null,"Jooksev","Tegevus 5","3 – madal"]
["Lisage uusi üksusi, sisestades tabelisse uusi ridu selle rea ette.\nSee on viimane juhis sellel töölehel.","Lisage uusi üksusi, sisestades uusi ridu selle rea ette"]

{"sheet":"Kiirtegevuskava","index":1,"n_rows":100,"n_cols":8,"rows_kept":100}
["Sellel töölehel on kiirtegevuskava, mis kuvab tegevuskava andmed töölehelt võetud teetähised ja tegevused. \nLahtris B1 on pealkiri. \nTulemid, millele on märge \"Muutuseta\", tõstetakse esile heleoranžilt, rgb(255, 230, 210).\nLõpetatud teetähised või tegevused tõstetakse esile heleroheliselt, rgb(237,251,219).","Kiirtegevuskava"]
["Lahtrites B2, D2, F2 ja H2 on diagrammi päised. Nendeks on: Lõpetatud, Jooksev, Kiireloomuline ja Tulevane. Muutke neid päiseid, et muuta eesmärgi valikuväärtusi tegevuskava andmed töölehe tegevuskava andmete tabelis.\nLahtrites B3–H20 on selle rea päisele vastavad teetähised ja tegevused. \nTeetähised ja tegevused luuakse tegevuskava andmed töölehel.\nÄRGE muutke ega kustutage sellel töölehel olevaid kirjeid. Selle töölehe sisu värskendamiseks värskendage tegevuskava andmed töölehe tegevuskava andmed tabelit.\nSee on viimane juhis sellel töölehel.","Lõpetatud",null,"Jooksev",null,"Kiireloomuline",null,"Tulevane"]
[null,{"$f":"IFERROR(INDEX(Tegevus,SMALL(IF(Eesmärk=$B$2,ROW(Tegevus)-MIN(ROW(Tegevus))+1),ROWS($B$3:B3)))&\" \"&CHAR(10)&(INDEX(Tulem,SMALL(IF(Eesmärk=$B$2,ROW(Tulem)-MIN(ROW(Tulem))+1),ROWS($B$3:B3))))&CHAR(10),\"\")","v":"Tegevus 9\nEsimene etapp kinnitatud \nVähenemine 10%\n"},null,{"$f":"IFERROR(INDEX(Tegevus,SMALL(IF(Eesmärk=$D$2,ROW(Tegevus)-MIN(ROW(Tegevus))+1),ROWS($B$3:B3)))&CHAR(10),\"\")","v":"Tegevus 1\nPrototüübi valmistamine\n"},null,{"$f":"IFERROR(INDEX(Tegevus,SMALL(IF(Eesmärk=$F$2,ROW(Tegevus)-MIN(ROW(Tegevus))+1),ROWS($B$3:B3)))&CHAR(10),\"\")","v":"Tegevus 2\nPrototüübi demonstreerimine\n"},null,{"$f":"IFERROR(INDEX(Tegevus,SMALL(IF(Eesmärk=$H$2,ROW(Tegevus)-MIN(ROW(Tegevus))+1),ROWS($B$3:B3)))&CHAR(10),\"\")","v":"Tegevus 7\nEsimese etapi juurutuse arenduse alltöövõtja leidmine\n"}]
[null,{"$f":"IFERROR(INDEX(Tegevus,SMALL(IF(Eesmärk=$B$2,ROW(Tegevus)-MIN(ROW(Tegevus))+1),ROWS($B$3:B4)))&\" \"&CHAR(10)&(INDEX(Tulem,SMALL(IF(Eesmärk=$B$2,ROW(Tulem)-MIN(ROW(Tulem))+1),ROWS($B$3:B4))))&CHAR(10),\"\")","v":"Tegevus 3 \nMuutuseta\n"},null,{"$f":"IFERROR(INDEX(Tegevus,SMALL(IF(Eesmärk=$D$2,ROW(Tegevus)-MIN(ROW(Tegevus))+1),ROWS($B$3:B4)))&CHAR(10),\"\")","v":"Tegevus 6\n"},null,{"$f":"IFERROR(INDEX(Tegevus,SMALL(IF(Eesmärk=$F$2,ROW(Tegevus)-MIN(ROW(Tegevus))+1),ROWS($B$3:B4)))&CHAR(10),\"\")","v":"Tegevus 8\n"},null,{"$f":"IFERROR(INDEX(Tegevus,SMALL(IF(Eesmärk=$H$2,ROW(Tegevus)-MIN(ROW(Tegevus))+1),ROWS($B$3:B4)))&CHAR(10),\"\")","v":"Tegevus 10\n"}]
[null,{"$f":"IFERROR(INDEX(Tegevus,SMALL(IF(Eesmärk=$B$2,ROW(Tegevus)-MIN(ROW(Tegevus))+1),ROWS($B$3:B5)))&\" \"&CHAR(10)&(INDEX(Tulem,SMALL(IF(Eesmärk=$B$2,ROW(Tulem)-MIN(ROW(Tulem))+1),ROWS($B$3:B5))))&CHAR(10),\"\")","v":""},null,{"$f":"IFERROR(INDEX(Tegevus,SMALL(IF(Eesmärk=$D$2,ROW(Tegevus)-MIN(ROW(Tegevus))+1),ROWS($B$3:B5)))&CHAR(10),\"\")","v":"Tegevus 5\n"},null,{"$f":"IFERROR(INDEX(Tegevus,SMALL(IF(Eesmärk=$F$2,ROW(Tegevus)-MIN(ROW(Tegevus))+1),ROWS($B$3:B5)))&CHAR(10),\"\")","v":""},null,{"$f":"IFERROR(INDEX(Tegevus,SMALL(IF(Eesmärk=$H$2,ROW(Tegevus)-MIN(ROW(Tegevus))+1),ROWS($B$3:B5)))&CHAR(10),\"\")","v":"Tegevus 4\n"}]
[null,{"$f":"IFERROR(INDEX(Tegevus,SMALL(IF(Eesmärk=$B$2,ROW(Tegevus)-MIN(ROW(Tegevus))+1),ROWS($B$3:B6)))&\" \"&CHAR(10)&(INDEX(Tulem,SMALL(IF(Eesmärk=$B$2,ROW(Tulem)-MIN(ROW(Tulem))+1),ROWS($B$3:B6))))&CHAR(10),\"\")","v":""},null,{"$f":"IFERROR(INDEX(Tegevus,SMALL(IF(Eesmärk=$D$2,ROW(Tegevus)-MIN(ROW(Tegevus))+1),ROWS($B$3:B6)))&CHAR(10),\"\")","v":""},null,{"$f":"IFERROR(INDEX(Tegevus,SMALL(IF(Eesmärk=$F$2,ROW(Tegevus)-MIN(ROW(Tegevus))+1),ROWS($B$3:B6)))&CHAR(10),\"\")","v":""},null,{"$f":"IFERROR(INDEX(Tegevus,SMALL(IF(Eesmärk=$H$2,ROW(Tegevus)-MIN(ROW(Tegevus))+1),ROWS($B$3:B6)))&CHAR(10),\"\")","v":""}]
[null,{"$f":"IFERROR(INDEX(Tegevus,SMALL(IF(Eesmärk=$B$2,ROW(Tegevus)-MIN(ROW(Tegevus))+1),ROWS($B$3:B7)))&\" \"&CHAR(10)&(INDEX(Tulem,SMALL(IF(Eesmärk=$B$2,ROW(Tulem)-MIN(ROW(Tulem))+1),ROWS($B$3:B7))))&CHAR(10),\"\")","v":""},null,{"$f":"IFERROR(INDEX(Tegevus,SMALL(IF(Eesmärk=$D$2,ROW(Tegevus)-MIN(ROW(Tegevus))+1),ROWS($B$3:B7)))&CHAR(10),\"\")","v":""},null,{"$f":"IFERROR(INDEX(Tegevus,SMALL(IF(Eesmärk=$F$2,ROW(Tegevus)-MIN(ROW(Tegevus))+1),ROWS($B$3:B7)))&CHAR(10),\"\")","v":""},null,{"$f":"IFERROR(INDEX(Tegevus,SMALL(IF(Eesmärk=$H$2,ROW(Tegevus)-MIN(ROW(Tegevus))+1),ROWS($B$3:B7)))&CHAR(10),\"\")","v":""}]
[null,{"$f":"IFERROR(INDEX(Tegevus,SMALL(IF(Eesmärk=$B$2,ROW(Tegevus)-MIN(ROW(Tegevus))+1),ROWS($B$3:B8)))&\" \"&CHAR(10)&(INDEX(Tulem,SMALL(IF(Eesmärk=$B$2,ROW(Tulem)-MIN(ROW(Tulem))+1),ROWS($B$3:B8))))&CHAR(10),\"\")","v":""},null,{"$f":"IFERROR(INDEX(Tegevus,SMALL(IF(Eesmärk=$D$2,ROW(Tegevus)-MIN(ROW(Tegevus))+1),ROWS($B$3:B8)))&CHAR(10),\"\")","v":""},null,{"$f":"IFERROR(INDEX(Tegevus,SMALL(IF(Eesmärk=$F$2,ROW(Tegevus)-MIN(ROW(Tegevus))+1),ROWS($B$3:B8)))&CHAR(10),\"\")","v":""},null,{"$f":"IFERROR(INDEX(Tegevus,SMALL(IF(Eesmärk=$H$2,ROW(Tegevus)-MIN(ROW(Tegevus))+1),ROWS($B$3:B8)))&CHAR(10),\"\")","v":""}]
[null,{"$f":"IFERROR(INDEX(Tegevus,SMALL(IF(Eesmärk=$B$2,ROW(Tegevus)-MIN(ROW(Tegevus))+1),ROWS($B$3:B9)))&\" \"&CHAR(10)&(INDEX(Tulem,SMALL(IF(Eesmärk=$B$2,ROW(Tulem)-MIN(ROW(Tulem))+1),ROWS($B$3:B9))))&CHAR(10),\"\")","v":""},null,{"$f":"IFERROR(INDEX(Tegevus,SMALL(IF(Eesmärk=$D$2,ROW(Tegevus)-MIN(ROW(Tegevus))+1),ROWS($B$3:B9)))&CHAR(10),\"\")","v":""},null,{"$f":"IFERROR(INDEX(Tegevus,SMALL(IF(Eesmärk=$F$2,ROW(Tegevus)-MIN(ROW(Tegevus))+1),ROWS($B$3:B9)))&CHAR(10),\"\")","v":""},null,{"$f":"IFERROR(INDEX(Tegevus,SMALL(IF(Eesmärk=$H$2,ROW(Tegevus)-MIN(ROW(Tegevus))+1),ROWS($B$3:B9)))&CHAR(10),\"\")","v":""}]
[null,{"$f":"IFERROR(INDEX(Tegevus,SMALL(IF(Eesmärk=$B$2,ROW(Tegevus)-MIN(ROW(Tegevus))+1),ROWS($B$3:B10)))&\" \"&CHAR(10)&(INDEX(Tulem,SMALL(IF(Eesmärk=$B$2,ROW(Tulem)-MIN(ROW(Tulem))+1),ROWS($B$3:B10))))&CHAR(10),\"\")","v":""},null,{"$f":"IFERROR(INDEX(Tegevus,SMALL(IF(Eesmärk=$D$2,ROW(Tegevus)-MIN(ROW(Tegevus))+1),ROWS($B$3:B10)))&CHAR(10),\"\")","v":""},null,{"$f":"IFERROR(INDEX(Tegevus,SMALL(IF(Eesmärk=$F$2,ROW(Tegevus)-MIN(ROW(Tegevus))+1),ROWS($B$3:B10)))&CHAR(10),\"\")","v":""},null,{"$f":"IFERROR(INDEX(Tegevus,SMALL(IF(Eesmärk=$H$2,ROW(Tegevus)-MIN(ROW(Tegevus))+1),ROWS($B$3:B10)))&CHAR(10),\"\")","v":""}]
[null,{"$f":"IFERROR(INDEX(Tegevus,SMALL(IF(Eesmärk=$B$2,ROW(Tegevus)-MIN(ROW(Tegevus))+1),ROWS($B$3:B11)))&\" \"&CHAR(10)&(INDEX(Tulem,SMALL(IF(Eesmärk=$B$2,ROW(Tulem)-MIN(ROW(Tulem))+1),ROWS($B$3:B11))))&CHAR(10),\"\")","v":""},null,{"$f":"IFERROR(INDEX(Tegevus,SMALL(IF(Eesmärk=$D$2,ROW(Tegevus)-MIN(ROW(Tegevus))+1),ROWS($B$3:B11)))&CHAR(10),\"\")","v":""},null,{"$f":"IFERROR(INDEX(Tegevus,SMALL(IF(Eesmärk=$F$2,ROW(Tegevus)-MIN(ROW(Tegevus))+1),ROWS($B$3:B11)))&CHAR(10),\"\")","v":""},null,{"$f":"IFERROR(INDEX(Tegevus,SMALL(IF(Eesmärk=$H$2,ROW(Tegevus)-MIN(ROW(Tegevus))+1),ROWS($B$3:B11)))&CHAR(10),\"\")","v":""}]
[null,{"$f":"IFERROR(INDEX(Tegevus,SMALL(IF(Eesmärk=$B$2,ROW(Tegevus)-MIN(ROW(Tegevus))+1),ROWS($B$3:B12)))&\" \"&CHAR(10)&(INDEX(Tulem,SMALL(IF(Eesmärk=$B$2,ROW(Tulem)-MIN(ROW(Tulem))+1),ROWS($B$3:B12))))&CHAR(10),\"\")","v":""},null,{"$f":"IFERROR(INDEX(Tegevus,SMALL(IF(Eesmärk=$D$2,ROW(Tegevus)-MIN(ROW(Tegevus))+1),ROWS($B$3:B12)))&CHAR(10),\"\")","v":""},null,{"$f":"IFERROR(INDEX(Tegevus,SMALL(IF(Eesmärk=$F$2,ROW(Tegevus)-MIN(ROW(Tegevus))+1),ROWS($B$3:B12)))&CHAR(10),\"\")","v":""},null,{"$f":"IFERROR(INDEX(Tegevus,SMALL(IF(Eesmärk=$H$2,ROW(Tegevus)-MIN(ROW(Tegevus))+1),ROWS($B$3:B12)))&CHAR(10),\"\")","v":""}]
[null,{"$f":"IFERROR(INDEX(Tegevus,SMALL(IF(Eesmärk=$B$2,ROW(Tegevus)-MIN(ROW(Tegevus))+1),ROWS($B$3:B13)))&\" \"&CHAR(10)&(INDEX(Tulem,SMALL(IF(Eesmärk=$B$2,ROW(Tulem)-MIN(ROW(Tulem))+1),ROWS($B$3:B13))))&CHAR(10),\"\")","v":""},null,{"$f":"IFERROR(INDEX(Tegevus,SMALL(IF(Eesmärk=$D$2,ROW(Tegevus)-MIN(ROW(Tegevus))+1),ROWS($B$3:B13)))&CHAR(10),\"\")","v":""},null,{"$f":"IFERROR(INDEX(Tegevus,SMALL(IF(Eesmärk=$F$2,ROW(Tegevus)-MIN(ROW(Tegevus))+1),ROWS($B$3:B13)))&CHAR(10),\"\")","v":""},null,{"$f":"IFERROR(INDEX(Tegevus,SMALL(IF(Eesmärk=$H$2,ROW(Tegevus)-MIN(ROW(Tegevus))+1),ROWS($B$3:B13)))&CHAR(10),\"\")","v":""}]
[null,{"$f":"IFERROR(INDEX(Tegevus,SMALL(IF(Eesmärk=$B$2,ROW(Tegevus)-MIN(ROW(Tegevus))+1),ROWS($B$3:B14)))&\" \"&CHAR(10)&(INDEX(Tulem,SMALL(IF(Eesmärk=$B$2,ROW(Tulem)-MIN(ROW(Tulem))+1),ROWS($B$3:B14))))&CHAR(10),\"\")","v":""},null,{"$f":"IFERROR(INDEX(Tegevus,SMALL(IF(Eesmärk=$D$2,ROW(Tegevus)-MIN(ROW(Tegevus))+1),ROWS($B$3:B14)))&CHAR(10),\"\")","v":""},null,{"$f":"IFERROR(INDEX(Tegevus,SMALL(IF(Eesmärk=$F$2,ROW(Tegevus)-MIN(ROW(Tegevus))+1),ROWS($B$3:B14)))&CHAR(10),\"\")","v":""},null,{"$f":"IFERROR(INDEX(Tegevus,SMALL(IF(Eesmärk=$H$2,ROW(Tegevus)-MIN(ROW(Tegevus))+1),ROWS($B$3:B14)))&CHAR(10),\"\")","v":""}]
[null,{"$f":"IFERROR(INDEX(Tegevus,SMALL(IF(Eesmärk=$B$2,ROW(Tegevus)-MIN(ROW(Tegevus))+1),ROWS($B$3:B15)))&\" \"&CHAR(10)&(INDEX(Tulem,SMALL(IF(Eesmärk=$B$2,ROW(Tulem)-MIN(ROW(Tulem))+1),ROWS($B$3:B15))))&CHAR(10),\"\")","v":""},null,{"$f":"IFERROR(INDEX(Tegevus,SMALL(IF(Eesmärk=$D$2,ROW(Tegevus)-MIN(ROW(Tegevus))+1),ROWS($B$3:B15)))&CHAR(10),\"\")","v":""},null,{"$f":"IFERROR(INDEX(Tegevus,SMALL(IF(Eesmärk=$F$2,ROW(Tegevus)-MIN(ROW(Tegevus))+1),ROWS($B$3:B15)))&CHAR(10),\"\")","v":""},null,{"$f":"IFERROR(INDEX(Tegevus,SMALL(IF(Eesmärk=$H$2,ROW(Tegevus)-MIN(ROW(Tegevus))+1),ROWS($B$3:B15)))&CHAR(10),\"\")","v":""}]
[null,{"$f":"IFERROR(INDEX(Tegevus,SMALL(IF(Eesmärk=$B$2,ROW(Tegevus)-MIN(ROW(Tegevus))+1),ROWS($B$3:B16)))&\" \"&CHAR(10)&(INDEX(Tulem,SMALL(IF(Eesmärk=$B$2,ROW(Tulem)-MIN(ROW(Tulem))+1),ROWS($B$3:B16))))&CHAR(10),\"\")","v":""},null,{"$f":"IFERROR(INDEX(Tegevus,SMALL(IF(Eesmärk=$D$2,ROW(Tegevus)-MIN(ROW(Tegevus))+1),ROWS($B$3:B16)))&CHAR(10),\"\")","v":""},null,{"$f":"IFERROR(INDEX(Tegevus,SMALL(IF(Eesmärk=$F$2,ROW(Tegevus)-MIN(ROW(Tegevus))+1),ROWS($B$3:B16)))&CHAR(10),\"\")","v":""},null,{"$f":"IFERROR(INDEX(Tegevus,SMALL(IF(Eesmärk=$H$2,ROW(Tegevus)-MIN(ROW(Tegevus))+1),ROWS($B$3:B16)))&CHAR(10),\"\")","v":""}]
[null,{"$f":"IFERROR(INDEX(Tegevus,SMALL(IF(Eesmärk=$B$2,ROW(Tegevus)-MIN(ROW(Tegevus))+1),ROWS($B$3:B17)))&\" \"&CHAR(10)&(INDEX(Tulem,SMALL(IF(Eesmärk=$B$2,ROW(Tulem)-MIN(ROW(Tulem))+1),ROWS($B$3:B17))))&CHAR(10),\"\")","v":""},null,{"$f":"IFERROR(INDEX(Tegevus,SMALL(IF(Eesmärk=$D$2,ROW(Tegevus)-MIN(ROW(Tegevus))+1),ROWS($B$3:B17)))&CHAR(10),\"\")","v":""},null,{"$f":"IFERROR(INDEX(Tegevus,SMALL(IF(Eesmärk=$F$2,ROW(Tegevus)-MIN(ROW(Tegevus))+1),ROWS($B$3:B17)))&CHAR(10),\"\")","v":""},null,{"$f":"IFERROR(INDEX(Tegevus,SMALL(IF(Eesmärk=$H$2,ROW(Tegevus)-MIN(ROW(Tegevus))+1),ROWS($B$3:B17)))&CHAR(10),\"\")","v":""}]
[null,{"$f":"IFERROR(INDEX(Tegevus,SMALL(IF(Eesmärk=$B$2,ROW(Tegevus)-MIN(ROW(Tegevus))+1),ROWS($B$3:B18)))&\" \"&CHAR(10)&(INDEX(Tulem,SMALL(IF(Eesmärk=$B$2,ROW(Tulem)-MIN(ROW(Tulem))+1),ROWS($B$3:B18))))&CHAR(10),\"\")","v":""},null,{"$f":"IFERROR(INDEX(Tegevus,SMALL(IF(Eesmärk=$D$2,ROW(Tegevus)-MIN(ROW(Tegevus))+1),ROWS($B$3:B18)))&CHAR(10),\"\")","v":""},null,{"$f":"IFERROR(INDEX(Tegevus,SMALL(IF(Eesmärk=$F$2,ROW(Tegevus)-MIN(ROW(Tegevus))+1),ROWS($B$3:B18)))&CHAR(10),\"\")","v":""},null,{"$f":"IFERROR(INDEX(Tegevus,SMALL(IF(Eesmärk=$H$2,ROW(Tegevus)-MIN(ROW(Tegevus))+1),ROWS($B$3:B18)))&CHAR(10),\"\")","v":""}]
[null,{"$f":"IFERROR(INDEX(Tegevus,SMALL(IF(Eesmärk=$B$2,ROW(Tegevus)-MIN(ROW(Tegevus))+1),ROWS($B$3:B19)))&\" \"&CHAR(10)&(INDEX(Tulem,SMALL(IF(Eesmärk=$B$2,ROW(Tulem)-MIN(ROW(Tulem))+1),ROWS($B$3:B19))))&CHAR(10),\"\")","v":""},null,{"$f":"IFERROR(INDEX(Tegevus,SMALL(IF(Eesmärk=$D$2,ROW(Tegevus)-MIN(ROW(Tegevus))+1),ROWS($B$3:B19)))&CHAR(10),\"\")","v":""},null,{"$f":"IFERROR(INDEX(Tegevus,SMALL(IF(Eesmärk=$F$2,ROW(Tegevus)-MIN(ROW(Tegevus))+1),ROWS($B$3:B19)))&CHAR(10),\"\")","v":""},null,{"$f":"IFERROR(INDEX(Tegevus,SMALL(IF(Eesmärk=$H$2,ROW(Tegevus)-MIN(ROW(Tegevus))+1),ROWS($B$3:B19)))&CHAR(10),\"\")","v":""}]
[null,{"$f":"IFERROR(INDEX(Tegevus,SMALL(IF(Eesmärk=$B$2,ROW(Tegevus)-MIN(ROW(Tegevus))+1),ROWS($B$3:B20)))&\" \"&CHAR(10)&(INDEX(Tulem,SMALL(IF(Eesmärk=$B$2,ROW(Tulem)-MIN(ROW(Tulem))+1),ROWS($B$3:B20))))&CHAR(10),\"\")","v":""},null,{"$f":"IFERROR(INDEX(Tegevus,SMALL(IF(Eesmärk=$D$2,ROW(Tegevus)-MIN(ROW(Tegevus))+1),ROWS($B$3:B20)))&CHAR(10),\"\")","v":""},null,{"$f":"IFERROR(INDEX(Tegevus,SMALL(IF(Eesmärk=$F$2,ROW(Tegevus)-MIN(ROW(Tegevus))+1),ROWS($B$3:B20)))&CHAR(10),\"\")","v":""},null,{"$f":"IFERROR(INDEX(Tegevus,SMALL(IF(Eesmärk=$H$2,ROW(Tegevus)-MIN(ROW(Tegevus))+1),ROWS($B$3:B20)))&CHAR(10),\"\")","v":""}]
[null,{"$f":"IFERROR(INDEX(Tegevus,SMALL(IF(Eesmärk=$B$2,ROW(Tegevus)-MIN(ROW(Tegevus))+1),ROWS($B$3:B21)))&\" \"&CHAR(10)&(INDEX(Tulem,SMALL(IF(Eesmärk=$B$2,ROW(Tulem)-MIN(ROW(Tulem))+1),ROWS($B$3:B21))))&CHAR(10),\"\")","v":""},null,{"$f":"IFERROR(INDEX(Tegevus,SMALL(IF(Eesmärk=$D$2,ROW(Tegevus)-MIN(ROW(Tegevus))+1),ROWS($B$3:B21)))&CHAR(10),\"\")","v":""},null,{"$f":"IFERROR(INDEX(Tegevus,SMALL(IF(Eesmärk=$F$2,ROW(Tegevus)-MIN(ROW(Tegevus))+1),ROWS($B$3:B21)))&CHAR(10),\"\")","v":""},null,{"$f":"IFERROR(INDEX(Tegevus,SMALL(IF(Eesmärk=$H$2,ROW(Tegevus)-MIN(ROW(Tegevus))+1),ROWS($B$3:B21)))&CHAR(10),\"\")","v":""}]
[null,{"$f":"IFERROR(INDEX(Tegevus,SMALL(IF(Eesmärk=$B$2,ROW(Tegevus)-MIN(ROW(Tegevus))+1),ROWS($B$3:B22)))&\" \"&CHAR(10)&(INDEX(Tulem,SMALL(IF(Eesmärk=$B$2,ROW(Tulem)-MIN(ROW(Tulem))+1),ROWS($B$3:B22))))&CHAR(10),\"\")","v":""},null,{"$f":"IFERROR(INDEX(Tegevus,SMALL(IF(Eesmärk=$D$2,ROW(Tegevus)-MIN(ROW(Tegevus))+1),ROWS($B$3:B22)))&CHAR(10),\"\")","v":""},null,{"$f":"IFERROR(INDEX(Tegevus,SMALL(IF(Eesmärk=$F$2,ROW(Tegevus)-MIN(ROW(Tegevus))+1),ROWS($B$3:B22)))&CHAR(10),\"\")","v":""},null,{"$f":"IFERROR(INDEX(Tegevus,SMALL(IF(Eesmärk=$H$2,ROW(Tegevus)-MIN(ROW(Tegevus))+1),ROWS($B$3:B22)))&CHAR(10),\"\")","v":""}]
[null,{"$f":"IFERROR(INDEX(Tegevus,SMALL(IF(Eesmärk=$B$2,ROW(Tegevus)-MIN(ROW(Tegevus))+1),ROWS($B$3:B23)))&\" \"&CHAR(10)&(INDEX(Tulem,SMALL(IF(Eesmärk=$B$2,ROW(Tulem)-MIN(ROW(Tulem))+1),ROWS($B$3:B23))))&CHAR(10),\"\")","v":""},null,{"$f":"IFERROR(INDEX(Tegevus,SMALL(IF(Eesmärk=$D$2,ROW(Tegevus)-MIN(ROW(Tegevus))+1),ROWS($B$3:B23)))&CHAR(10),\"\")","v":""},null,{"$f":"IFERROR(INDEX(Tegevus,SMALL(IF(Eesmärk=$F$2,ROW(Tegevus)-MIN(ROW(Tegevus))+1),ROWS($B$3:B23)))&CHAR(10),\"\")","v":""},null,{"$f":"IFERROR(INDEX(Tegevus,SMALL(IF(Eesmärk=$H$2,ROW(Tegevus)-MIN(ROW(Tegevus))+1),ROWS($B$3:B23)))&CHAR(10),\"\")","v":""}]
[null,{"$f":"IFERROR(INDEX(Tegevus,SMALL(IF(Eesmärk=$B$2,ROW(Tegevus)-MIN(ROW(Tegevus))+1),ROWS($B$3:B24)))&\" \"&CHAR(10)&(INDEX(Tulem,SMALL(IF(Eesmärk=$B$2,ROW(Tulem)-MIN(ROW(Tulem))+1),ROWS($B$3:B24))))&CHAR(10),\"\")","v":""},null,{"$f":"IFERROR(INDEX(Tegevus,SMALL(IF(Eesmärk=$D$2,ROW(Tegevus)-MIN(ROW(Tegevus))+1),ROWS($B$3:B24)))&CHAR(10),\"\")","v":""},null,{"$f":"IFERROR(INDEX(Tegevus,SMALL(IF(Eesmärk=$F$2,ROW(Tegevus)-MIN(ROW(Tegevus))+1),ROWS($B$3:B24)))&CHAR(10),\"\")","v":""},null,{"$f":"IFERROR(INDEX(Tegevus,SMALL(IF(Eesmärk=$H$2,ROW(Tegevus)-MIN(ROW(Tegevus))+1),ROWS($B$3:B24)))&CHAR(10),\"\")","v":""}]
[null,{"$f":"IFERROR(INDEX(Tegevus,SMALL(IF(Eesmärk=$B$2,ROW(Tegevus)-MIN(ROW(Tegevus))+1),ROWS($B$3:B25)))&\" \"&CHAR(10)&(INDEX(Tulem,SMALL(IF(Eesmärk=$B$2,ROW(Tulem)-MIN(ROW(Tulem))+1),ROWS($B$3:B25))))&CHAR(10),\"\")","v":""},null,{"$f":"IFERROR(INDEX(Tegevus,SMALL(IF(Eesmärk=$D$2,ROW(Tegevus)-MIN(ROW(Tegevus))+1),ROWS($B$3:B25)))&CHAR(10),\"\")","v":""},null,{"$f":"IFERROR(INDEX(Tegevus,SMALL(IF(Eesmärk=$F$2,ROW(Tegevus)-MIN(ROW(Tegevus))+1),ROWS($B$3:B25)))&CHAR(10),\"\")","v":""},null,{"$f":"IFERROR(INDEX(Tegevus,SMALL(IF(Eesmärk=$H$2,ROW(Tegevus)-MIN(ROW(Tegevus))+1),ROWS($B$3:B25)))&CHAR(10),\"\")","v":""}]
[null,{"$f":"IFERROR(INDEX(Tegevus,SMALL(IF(Eesmärk=$B$2,ROW(Tegevus)-MIN(ROW(Tegevus))+1),ROWS($B$3:B26)))&\" \"&CHAR(10)&(INDEX(Tulem,SMALL(IF(Eesmärk=$B$2,ROW(Tulem)-MIN(ROW(Tulem))+1),ROWS($B$3:B26))))&CHAR(10),\"\")","v":""},null,{"$f":"IFERROR(INDEX(Tegevus,SMALL(IF(Eesmärk=$D$2,ROW(Tegevus)-MIN(ROW(Tegevus))+1),ROWS($B$3:B26)))&CHAR(10),\"\")","v":""},null,{"$f":"IFERROR(INDEX(Tegevus,SMALL(IF(Eesmärk=$F$2,ROW(Tegevus)-MIN(ROW(Tegevus))+1),ROWS($B$3:B26)))&CHAR(10),\"\")","v":""},null,{"$f":"IFERROR(INDEX(Tegevus,SMALL(IF(Eesmärk=$H$2,ROW(Tegevus)-MIN(ROW(Tegevus))+1),ROWS($B$3:B26)))&CHAR(10),\"\")","v":""}]
[null,{"$f":"IFERROR(INDEX(Tegevus,SMALL(IF(Eesmärk=$B$2,ROW(Tegevus)-MIN(ROW(Tegevus))+1),ROWS($B$3:B27)))&\" \"&CHAR(10)&(INDEX(Tulem,SMALL(IF(Eesmärk=$B$2,ROW(Tulem)-MIN(ROW(Tulem))+1),ROWS($B$3:B27))))&CHAR(10),\"\")","v":""},null,{"$f":"IFERROR(INDEX(Tegevus,SMALL(IF(Eesmärk=$D$2,ROW(Tegevus)-MIN(ROW(Tegevus))+1),ROWS($B$3:B27)))&CHAR(10),\"\")","v":""},null,{"$f":"IFERROR(INDEX(Tegevus,SMALL(IF(Eesmärk=$F$2,ROW(Tegevus)-MIN(ROW(Tegevus))+1),ROWS($B$3:B27)))&CHAR(10),\"\")","v":""},null,{"$f":"IFERROR(INDEX(Tegevus,SMALL(IF(Eesmärk=$H$2,ROW(Tegevus)-MIN(ROW(Tegevus))+1),ROWS($B$3:B27)))&CHAR(10),\"\")","v":""}]
[null,{"$f":"IFERROR(INDEX(Tegevus,SMALL(IF(Eesmärk=$B$2,ROW(Tegevus)-MIN(ROW(Tegevus))+1),ROWS($B$3:B28)))&\" \"&CHAR(10)&(INDEX(Tulem,SMALL(IF(Eesmärk=$B$2,ROW(Tulem)-MIN(ROW(Tulem))+1),ROWS($B$3:B28))))&CHAR(10),\"\")","v":""},null,{"$f":"IFERROR(INDEX(Tegevus,SMALL(IF(Eesmärk=$D$2,ROW(Tegevus)-MIN(ROW(Tegevus))+1),ROWS($B$3:B28)))&CHAR(10),\"\")","v":""},null,{"$f":"IFERROR(INDEX(Tegevus,SMALL(IF(Eesmärk=$F$2,ROW(Tegevus)-MIN(ROW(Tegevus))+1),ROWS($B$3:B28)))&CHAR(10),\"\")","v":""},null,{"$f":"IFERROR(INDEX(Tegevus,SMALL(IF(Eesmärk=$H$2,ROW(Tegevus)-MIN(ROW(Tegevus))+1),ROWS($B$3:B28)))&CHAR(10),\"\")","v":""}]
[null,{"$f":"IFERROR(INDEX(Tegevus,SMALL(IF(Eesmärk=$B$2,ROW(Tegevus)-MIN(ROW(Tegevus))+1),ROWS($B$3:B29)))&\" \"&CHAR(10)&(INDEX(Tulem,SMALL(IF(Eesmärk=$B$2,ROW(Tulem)-MIN(ROW(Tulem))+1),ROWS($B$3:B29))))&CHAR(10),\"\")","v":""},null,{"$f":"IFERROR(INDEX(Tegevus,SMALL(IF(Eesmärk=$D$2,ROW(Tegevus)-MIN(ROW(Tegevus))+1),ROWS($B$3:B29)))&CHAR(10),\"\")","v":""},null,{"$f":"IFERROR(INDEX(Tegevus,SMALL(IF(Eesmärk=$F$2,ROW(Tegevus)-MIN(ROW(Tegevus))+1),ROWS($B$3:B29)))&CHAR(10),\"\")","v":""},null,{"$f":"IFERROR(INDEX(Tegevus,SMALL(IF(Eesmärk=$H$2,ROW(Tegevus)-MIN(ROW(Tegevus))+1),ROWS($B$3:B29)))&CHAR(10),\"\")","v":""}]
[null,{"$f":"IFERROR(INDEX(Tegevus,SMALL(IF(Eesmärk=$B$2,ROW(Tegevus)-MIN(ROW(Tegevus))+1),ROWS($B$3:B30)))&\" \"&CHAR(10)&(INDEX(Tulem,SMALL(IF(Eesmärk=$B$2,ROW(Tulem)-MIN(ROW(Tulem))+1),ROWS($B$3:B30))))&CHAR(10),\"\")","v":""},null,{"$f":"IFERROR(INDEX(Tegevus,SMALL(IF(Eesmärk=$D$2,ROW(Tegevus)-MIN(ROW(Tegevus))+1),ROWS($B$3:B30)))&CHAR(10),\"\")","v":""},null,{"$f":"IFERROR(INDEX(Tegevus,SMALL(IF(Eesmärk=$F$2,ROW(Tegevus)-MIN(ROW(Tegevus))+1),ROWS($B$3:B30)))&CHAR(10),\"\")","v":""},null,{"$f":"IFERROR(INDEX(Tegevus,SMALL(IF(Eesmärk=$H$2,ROW(Tegevus)-MIN(ROW(Tegevus))+1),ROWS($B$3:B30)))&CHAR(10),\"\")","v":""}]
[null,{"$f":"IFERROR(INDEX(Tegevus,SMALL(IF(Eesmärk=$B$2,ROW(Tegevus)-MIN(ROW(Tegevus))+1),ROWS($B$3:B31)))&\" \"&CHAR(10)&(INDEX(Tulem,SMALL(IF(Eesmärk=$B$2,ROW(Tulem)-MIN(ROW(Tulem))+1),ROWS($B$3:B31))))&CHAR(10),\"\")","v":""},null,{"$f":"IFERROR(INDEX(Tegevus,SMALL(IF(Eesmärk=$D$2,ROW(Tegevus)-MIN(ROW(Tegevus))+1),ROWS($B$3:B31)))&CHAR(10),\"\")","v":""},null,{"$f":"IFERROR(INDEX(Tegevus,SMALL(IF(Eesmärk=$F$2,ROW(Tegevus)-MIN(ROW(Tegevus))+1),ROWS($B$3:B31)))&CHAR(10),\"\")","v":""},null,{"$f":"IFERROR(INDEX(Tegevus,SMALL(IF(Eesmärk=$H$2,ROW(Tegevus)-MIN(ROW(Tegevus))+1),ROWS($B$3:B31)))&CHAR(10),\"\")","v":""}]
[null,{"$f":"IFERROR(INDEX(Tegevus,SMALL(IF(Eesmärk=$B$2,ROW(Tegevus)-MIN(ROW(Tegevus))+1),ROWS($B$3:B32)))&\" \"&CHAR(10)&(INDEX(Tulem,SMALL(IF(Eesmärk=$B$2,ROW(Tulem)-MIN(ROW(Tulem))+1),ROWS($B$3:B32))))&CHAR(10),\"\")","v":""},null,{"$f":"IFERROR(INDEX(Tegevus,SMALL(IF(Eesmärk=$D$2,ROW(Tegevus)-MIN(ROW(Tegevus))+1),ROWS($B$3:B32)))&CHAR(10),\"\")","v":""},null,{"$f":"IFERROR(INDEX(Tegevus,SMALL(IF(Eesmärk=$F$2,ROW(Tegevus)-MIN(ROW(Tegevus))+1),ROWS($B$3:B32)))&CHAR(10),\"\")","v":""},null,{"$f":"IFERROR(INDEX(Tegevus,SMALL(IF(Eesmärk=$H$2,ROW(Tegevus)-MIN(ROW(Tegevus))+1),ROWS($B$3:B32)))&CHAR(10),\"\")","v":""}]
[null,{"$f":"IFERROR(INDEX(Tegevus,SMALL(IF(Eesmärk=$B$2,ROW(Tegevus)-MIN(ROW(Tegevus))+1),ROWS($B$3:B33)))&\" \"&CHAR(10)&(INDEX(Tulem,SMALL(IF(Eesmärk=$B$2,ROW(Tulem)-MIN(ROW(Tulem))+1),ROWS($B$3:B33))))&CHAR(10),\"\")","v":""},null,{"$f":"IFERROR(INDEX(Tegevus,SMALL(IF(Eesmärk=$D$2,ROW(Tegevus)-MIN(ROW(Tegevus))+1),ROWS($B$3:B33)))&CHAR(10),\"\")","v":""},null,{"$f":"IFERROR(INDEX(Tegevus,SMALL(IF(Eesmärk=$F$2,ROW(Tegevus)-MIN(ROW(Tegevus))+1),ROWS($B$3:B33)))&CHAR(10),\"\")","v":""},null,{"$f":"IFERROR(INDEX(Tegevus,SMALL(IF(Eesmärk=$H$2,ROW(Tegevus)-MIN(ROW(Tegevus))+1),ROWS($B$3:B33)))&CHAR(10),\"\")","v":""}]
[null,{"$f":"IFERROR(INDEX(Tegevus,SMALL(IF(Eesmärk=$B$2,ROW(Tegevus)-MIN(ROW(Tegevus))+1),ROWS($B$3:B34)))&\" \"&CHAR(10)&(INDEX(Tulem,SMALL(IF(Eesmärk=$B$2,ROW(Tulem)-MIN(ROW(Tulem))+1),ROWS($B$3:B34))))&CHAR(10),\"\")","v":""},null,{"$f":"IFERROR(INDEX(Tegevus,SMALL(IF(Eesmärk=$D$2,ROW(Tegevus)-MIN(ROW(Tegevus))+1),ROWS($B$3:B34)))&CHAR(10),\"\")","v":""},null,{"$f":"IFERROR(INDEX(Tegevus,SMALL(IF(Eesmärk=$F$2,ROW(Tegevus)-MIN(ROW(Tegevus))+1),ROWS($B$3:B34)))&CHAR(10),\"\")","v":""},null,{"$f":"IFERROR(INDEX(Tegevus,SMALL(IF(Eesmärk=$H$2,ROW(Tegevus)-MIN(ROW(Tegevus))+1),ROWS($B$3:B34)))&CHAR(10),\"\")","v":""}]
[null,{"$f":"IFERROR(INDEX(Tegevus,SMALL(IF(Eesmärk=$B$2,ROW(Tegevus)-MIN(ROW(Tegevus))+1),ROWS($B$3:B35)))&\" \"&CHAR(10)&(INDEX(Tulem,SMALL(IF(Eesmärk=$B$2,ROW(Tulem)-MIN(ROW(Tulem))+1),ROWS($B$3:B35))))&CHAR(10),\"\")","v":""},null,{"$f":"IFERROR(INDEX(Tegevus,SMALL(IF(Eesmärk=$D$2,ROW(Tegevus)-MIN(ROW(Tegevus))+1),ROWS($B$3:B35)))&CHAR(10),\"\")","v":""},null,{"$f":"IFERROR(INDEX(Tegevus,SMALL(IF(Eesmärk=$F$2,ROW(Tegevus)-MIN(ROW(Tegevus))+1),ROWS($B$3:B35)))&CHAR(10),\"\")","v":""},null,{"$f":"IFERROR(INDEX(Tegevus,SMALL(IF(Eesmärk=$H$2,ROW(Tegevus)-MIN(ROW(Tegevus))+1),ROWS($B$3:B35)))&CHAR(10),\"\")","v":""}]
[null,{"$f":"IFERROR(INDEX(Tegevus,SMALL(IF(Eesmärk=$B$2,ROW(Tegevus)-MIN(ROW(Tegevus))+1),ROWS($B$3:B36)))&\" \"&CHAR(10)&(INDEX(Tulem,SMALL(IF(Eesmärk=$B$2,ROW(Tulem)-MIN(ROW(Tulem))+1),ROWS($B$3:B36))))&CHAR(10),\"\")","v":""},null,{"$f":"IFERROR(INDEX(Tegevus,SMALL(IF(Eesmärk=$D$2,ROW(Tegevus)-MIN(ROW(Tegevus))+1),ROWS($B$3:B36)))&CHAR(10),\"\")","v":""},null,{"$f":"IFERROR(INDEX(Tegevus,SMALL(IF(Eesmärk=$F$2,ROW(Tegevus)-MIN(ROW(Tegevus))+1),ROWS($B$3:B36)))&CHAR(10),\"\")","v":""},null,{"$f":"IFERROR(INDEX(Tegevus,SMALL(IF(Eesmärk=$H$2,ROW(Tegevus)-MIN(ROW(Tegevus))+1),ROWS($B$3:B36)))&CHAR(10),\"\")","v":""}]
[null,{"$f":"IFERROR(INDEX(Tegevus,SMALL(IF(Eesmärk=$B$2,ROW(Tegevus)-MIN(ROW(Tegevus))+1),ROWS($B$3:B37)))&\" \"&CHAR(10)&(INDEX(Tulem,SMALL(IF(Eesmärk=$B$2,ROW(Tulem)-MIN(ROW(Tulem))+1),ROWS($B$3:B37))))&CHAR(10),\"\")","v":""},null,{"$f":"IFERROR(INDEX(Tegevus,SMALL(IF(Eesmärk=$D$2,ROW(Tegevus)-MIN(ROW(Tegevus))+1),ROWS($B$3:B37)))&CHAR(10),\"\")","v":""},null,{"$f":"IFERROR(INDEX(Tegevus,SMALL(IF(Eesmärk=$F$2,ROW(Tegevus)-MIN(ROW(Tegevus))+1),ROWS($B$3:B37)))&CHAR(10),\"\")","v":""},null,{"$f":"IFERROR(INDEX(Tegevus,SMALL(IF(Eesmärk=$H$2,ROW(Tegevus)-MIN(ROW(Tegevus))+1),ROWS($B$3:B37)))&CHAR(10),\"\")","v":""}]
[null,{"$f":"IFERROR(INDEX(Tegevus,SMALL(IF(Eesmärk=$B$2,ROW(Tegevus)-MIN(ROW(Tegevus))+1),ROWS($B$3:B38)))&\" \"&CHAR(10)&(INDEX(Tulem,SMALL(IF(Eesmärk=$B$2,ROW(Tulem)-MIN(ROW(Tulem))+1),ROWS($B$3:B38))))&CHAR(10),\"\")","v":""},null,{"$f":"IFERROR(INDEX(Tegevus,SMALL(IF(Eesmärk=$D$2,ROW(Tegevus)-MIN(ROW(Tegevus))+1),ROWS($B$3:B38)))&CHAR(10),\"\")","v":""},null,{"$f":"IFERROR(INDEX(Tegevus,SMALL(IF(Eesmärk=$F$2,ROW(Tegevus)-MIN(ROW(Tegevus))+1),ROWS($B$3:B38)))&CHAR(10),\"\")","v":""},null,{"$f":"IFERROR(INDEX(Tegevus,SMALL(IF(Eesmärk=$H$2,ROW(Tegevus)-MIN(ROW(Tegevus))+1),ROWS($B$3:B38)))&CHAR(10),\"\")","v":""}]
[null,{"$f":"IFERROR(INDEX(Tegevus,SMALL(IF(Eesmärk=$B$2,ROW(Tegevus)-MIN(ROW(Tegevus))+1),ROWS($B$3:B39)))&\" \"&CHAR(10)&(INDEX(Tulem,SMALL(IF(Eesmärk=$B$2,ROW(Tulem)-MIN(ROW(Tulem))+1),ROWS($B$3:B39))))&CHAR(10),\"\")","v":""},null,{"$f":"IFERROR(INDEX(Tegevus,SMALL(IF(Eesmärk=$D$2,ROW(Tegevus)-MIN(ROW(Tegevus))+1),ROWS($B$3:B39)))&CHAR(10),\"\")","v":""},null,{"$f":"IFERROR(INDEX(Tegevus,SMALL(IF(Eesmärk=$F$2,ROW(Tegevus)-MIN(ROW(Tegevus))+1),ROWS($B$3:B39)))&CHAR(10),\"\")","v":""},null,{"$f":"IFERROR(INDEX(Tegevus,SMALL(IF(Eesmärk=$H$2,ROW(Tegevus)-MIN(ROW(Tegevus))+1),ROWS($B$3:B39)))&CHAR(10),\"\")","v":""}]
[null,{"$f":"IFERROR(INDEX(Tegevus,SMALL(IF(Eesmärk=$B$2,ROW(Tegevus)-MIN(ROW(Tegevus))+1),ROWS($B$3:B40)))&\" \"&CHAR(10)&(INDEX(Tulem,SMALL(IF(Eesmärk=$B$2,ROW(Tulem)-MIN(ROW(Tulem))+1),ROWS($B$3:B40))))&CHAR(10),\"\")","v":""},null,{"$f":"IFERROR(INDEX(Tegevus,SMALL(IF(Eesmärk=$D$2,ROW(Tegevus)-MIN(ROW(Tegevus))+1),ROWS($B$3:B40)))&CHAR(10),\"\")","v":""},null,{"$f":"IFERROR(INDEX(Tegevus,SMALL(IF(Eesmärk=$F$2,ROW(Tegevus)-MIN(ROW(Tegevus))+1),ROWS($B$3:B40)))&CHAR(10),\"\")","v":""},null,{"$f":"IFERROR(INDEX(Tegevus,SMALL(IF(Eesmärk=$H$2,ROW(Tegevus)-MIN(ROW(Tegevus))+1),ROWS($B$3:B40)))&CHAR(10),\"\")","v":""}]
[null,{"$f":"IFERROR(INDEX(Tegevus,SMALL(IF(Eesmärk=$B$2,ROW(Tegevus)-MIN(ROW(Tegevus))+1),ROWS($B$3:B41)))&\" \"&CHAR(10)&(INDEX(Tulem,SMALL(IF(Eesmärk=$B$2,ROW(Tulem)-MIN(ROW(Tulem))+1),ROWS($B$3:B41))))&CHAR(10),\"\")","v":""},null,{"$f":"IFERROR(INDEX(Tegevus,SMALL(IF(Eesmärk=$D$2,ROW(Tegevus)-MIN(ROW(Tegevus))+1),ROWS($B$3:B41)))&CHAR(10),\"\")","v":""},null,{"$f":"IFERROR(INDEX(Tegevus,SMALL(IF(Eesmärk=$F$2,ROW(Tegevus)-MIN(ROW(Tegevus))+1),ROWS($B$3:B41)))&CHAR(10),\"\")","v":""},null,{"$f":"IFERROR(INDEX(Tegevus,SMALL(IF(Eesmärk=$H$2,ROW(Tegevus)-MIN(ROW(Tegevus))+1),ROWS($B$3:B41)))&CHAR(10),\"\")","v":""}]
[null,{"$f":"IFERROR(INDEX(Tegevus,SMALL(IF(Eesmärk=$B$2,ROW(Tegevus)-MIN(ROW(Tegevus))+1),ROWS($B$3:B42)))&\" \"&CHAR(10)&(INDEX(Tulem,SMALL(IF(Eesmärk=$B$2,ROW(Tulem)-MIN(ROW(Tulem))+1),ROWS($B$3:B42))))&CHAR(10),\"\")","v":""},null,{"$f":"IFERROR(INDEX(Tegevus,SMALL(IF(Eesmärk=$D$2,ROW(Tegevus)-MIN(ROW(Tegevus))+1),ROWS($B$3:B42)))&CHAR(10),\"\")","v":""},null,{"$f":"IFERROR(INDEX(Tegevus,SMALL(IF(Eesmärk=$F$2,ROW(Tegevus)-MIN(ROW(Tegevus))+1),ROWS($B$3:B42)))&CHAR(10),\"\")","v":""},null,{"$f":"IFERROR(INDEX(Tegevus,SMALL(IF(Eesmärk=$H$2,ROW(Tegevus)-MIN(ROW(Tegevus))+1),ROWS($B$3:B42)))&CHAR(10),\"\")","v":""}]
[null,{"$f":"IFERROR(INDEX(Tegevus,SMALL(IF(Eesmärk=$B$2,ROW(Tegevus)-MIN(ROW(Tegevus))+1),ROWS($B$3:B43)))&\" \"&CHAR(10)&(INDEX(Tulem,SMALL(IF(Eesmärk=$B$2,ROW(Tulem)-MIN(ROW(Tulem))+1),ROWS($B$3:B43))))&CHAR(10),\"\")","v":""},null,{"$f":"IFERROR(INDEX(Tegevus,SMALL(IF(Eesmärk=$D$2,ROW(Tegevus)-MIN(ROW(Tegevus))+1),ROWS($B$3:B43)))&CHAR(10),\"\")","v":""},null,{"$f":"IFERROR(INDEX(Tegevus,SMALL(IF(Eesmärk=$F$2,ROW(Tegevus)-MIN(ROW(Tegevus))+1),ROWS($B$3:B43)))&CHAR(10),\"\")","v":""},null,{"$f":"IFERROR(INDEX(Tegevus,SMALL(IF(Eesmärk=$H$2,ROW(Tegevus)-MIN(ROW(Tegevus))+1),ROWS($B$3:B43)))&CHAR(10),\"\")","v":""}]
[null,{"$f":"IFERROR(INDEX(Tegevus,SMALL(IF(Eesmärk=$B$2,ROW(Tegevus)-MIN(ROW(Tegevus))+1),ROWS($B$3:B44)))&\" \"&CHAR(10)&(INDEX(Tulem,SMALL(IF(Eesmärk=$B$2,ROW(Tulem)-MIN(ROW(Tulem))+1),ROWS($B$3:B44))))&CHAR(10),\"\")","v":""},null,{"$f":"IFERROR(INDEX(Tegevus,SMALL(IF(Eesmärk=$D$2,ROW(Tegevus)-MIN(ROW(Tegevus))+1),ROWS($B$3:B44)))&CHAR(10),\"\")","v":""},null,{"$f":"IFERROR(INDEX(Tegevus,SMALL(IF(Eesmärk=$F$2,ROW(Tegevus)-MIN(ROW(Tegevus))+1),ROWS($B$3:B44)))&CHAR(10),\"\")","v":""},null,{"$f":"IFERROR(INDEX(Tegevus,SMALL(IF(Eesmärk=$H$2,ROW(Tegevus)-MIN(ROW(Tegevus))+1),ROWS($B$3:B44)))&CHAR(10),\"\")","v":""}]
[null,{"$f":"IFERROR(INDEX(Tegevus,SMALL(IF(Eesmärk=$B$2,ROW(Tegevus)-MIN(ROW(Tegevus))+1),ROWS($B$3:B45)))&\" \"&CHAR(10)&(INDEX(Tulem,SMALL(IF(Eesmärk=$B$2,ROW(Tulem)-MIN(ROW(Tulem))+1),ROWS($B$3:B45))))&CHAR(10),\"\")","v":""},null,{"$f":"IFERROR(INDEX(Tegevus,SMALL(IF(Eesmärk=$D$2,ROW(Tegevus)-MIN(ROW(Tegevus))+1),ROWS($B$3:B45)))&CHAR(10),\"\")","v":""},null,{"$f":"IFERROR(INDEX(Tegevus,SMALL(IF(Eesmärk=$F$2,ROW(Tegevus)-MIN(ROW(Tegevus))+1),ROWS($B$3:B45)))&CHAR(10),\"\")","v":""},null,{"$f":"IFERROR(INDEX(Tegevus,SMALL(IF(Eesmärk=$H$2,ROW(Tegevus)-MIN(ROW(Tegevus))+1),ROWS($B$3:B45)))&CHAR(10),\"\")","v":""}]
[null,{"$f":"IFERROR(INDEX(Tegevus,SMALL(IF(Eesmärk=$B$2,ROW(Tegevus)-MIN(ROW(Tegevus))+1),ROWS($B$3:B46)))&\" \"&CHAR(10)&(INDEX(Tulem,SMALL(IF(Eesmärk=$B$2,ROW(Tulem)-MIN(ROW(Tulem))+1),ROWS($B$3:B46))))&CHAR(10),\"\")","v":""},null,{"$f":"IFERROR(INDEX(Tegevus,SMALL(IF(Eesmärk=$D$2,ROW(Tegevus)-MIN(ROW(Tegevus))+1),ROWS($B$3:B46)))&CHAR(10),\"\")","v":""},null,{"$f":"IFERROR(INDEX(Tegevus,SMALL(IF(Eesmärk=$F$2,ROW(Tegevus)-MIN(ROW(Tegevus))+1),ROWS($B$3:B46)))&CHAR(10),\"\")","v":""},null,{"$f":"IFERROR(INDEX(Tegevus,SMALL(IF(Eesmärk=$H$2,ROW(Tegevus)-MIN(ROW(Tegevus))+1),ROWS($B$3:B46)))&CHAR(10),\"\")","v":""}]
[null,{"$f":"IFERROR(INDEX(Tegevus,SMALL(IF(Eesmärk=$B$2,ROW(Tegevus)-MIN(ROW(Tegevus))+1),ROWS($B$3:B47)))&\" \"&CHAR(10)&(INDEX(Tulem,SMALL(IF(Eesmärk=$B$2,ROW(Tulem)-MIN(ROW(Tulem))+1),ROWS($B$3:B47))))&CHAR(10),\"\")","v":""},null,{"$f":"IFERROR(INDEX(Tegevus,SMALL(IF(Eesmärk=$D$2,ROW(Tegevus)-MIN(ROW(Tegevus))+1),ROWS($B$3:B47)))&CHAR(10),\"\")","v":""},null,{"$f":"IFERROR(INDEX(Tegevus,SMALL(IF(Eesmärk=$F$2,ROW(Tegevus)-MIN(ROW(Tegevus))+1),ROWS($B$3:B47)))&CHAR(10),\"\")","v":""},null,{"$f":"IFERROR(INDEX(Tegevus,SMALL(IF(Eesmärk=$H$2,ROW(Tegevus)-MIN(ROW(Tegevus))+1),ROWS($B$3:B47)))&CHAR(10),\"\")","v":""}]
[null,{"$f":"IFERROR(INDEX(Tegevus,SMALL(IF(Eesmärk=$B$2,ROW(Tegevus)-MIN(ROW(Tegevus))+1),ROWS($B$3:B48)))&\" \"&CHAR(10)&(INDEX(Tulem,SMALL(IF(Eesmärk=$B$2,ROW(Tulem)-MIN(ROW(Tulem))+1),ROWS($B$3:B48))))&CHAR(10),\"\")","v":""},null,{"$f":"IFERROR(INDEX(Tegevus,SMALL(IF(Eesmärk=$D$2,ROW(Tegevus)-MIN(ROW(Tegevus))+1),ROWS($B$3:B48)))&CHAR(10),\"\")","v":""},null,{"$f":"IFERROR(INDEX(Tegevus,SMALL(IF(Eesmärk=$F$2,ROW(Tegevus)-MIN(ROW(Tegevus))+1),ROWS($B$3:B48)))&CHAR(10),\"\")","v":""},null,{"$f":"IFERROR(INDEX(Tegevus,SMALL(IF(Eesmärk=$H$2,ROW(Tegevus)-MIN(ROW(Tegevus))+1),ROWS($B$3:B48)))&CHAR(10),\"\")","v":""}]
[null,{"$f":"IFERROR(INDEX(Tegevus,SMALL(IF(Eesmärk=$B$2,ROW(Tegevus)-MIN(ROW(Tegevus))+1),ROWS($B$3:B49)))&\" \"&CHAR(10)&(INDEX(Tulem,SMALL(IF(Eesmärk=$B$2,ROW(Tulem)-MIN(ROW(Tulem))+1),ROWS($B$3:B49))))&CHAR(10),\"\")","v":""},null,{"$f":"IFERROR(INDEX(Tegevus,SMALL(IF(Eesmärk=$D$2,ROW(Tegevus)-MIN(ROW(Tegevus))+1),ROWS($B$3:B49)))&CHAR(10),\"\")","v":""},null,{"$f":"IFERROR(INDEX(Tegevus,SMALL(IF(Eesmärk=$F$2,ROW(Tegevus)-MIN(ROW(Tegevus))+1),ROWS($B$3:B49)))&CHAR(10),\"\")","v":""},null,{"$f":"IFERROR(INDEX(Tegevus,SMALL(IF(Eesmärk=$H$2,ROW(Tegevus)-MIN(ROW(Tegevus))+1),ROWS($B$3:B49)))&CHAR(10),\"\")","v":""}]
[null,{"$f":"IFERROR(INDEX(Tegevus,SMALL(IF(Eesmärk=$B$2,ROW(Tegevus)-MIN(ROW(Tegevus))+1),ROWS($B$3:B50)))&\" \"&CHAR(10)&(INDEX(Tulem,SMALL(IF(Eesmärk=$B$2,ROW(Tulem)-MIN(ROW(Tulem))+1),ROWS($B$3:B50))))&CHAR(10),\"\")","v":""},null,{"$f":"IFERROR(INDEX(Tegevus,SMALL(IF(Eesmärk=$D$2,ROW(Tegevus)-MIN(ROW(Tegevus))+1),ROWS($B$3:B50)))&CHAR(10),\"\")","v":""},null,{"$f":"IFERROR(INDEX(Tegevus,SMALL(IF(Eesmärk=$F$2,ROW(Tegevus)-MIN(ROW(Tegevus))+1),ROWS($B$3:B50)))&CHAR(10),\"\")","v":""},null,{"$f":"IFERROR(INDEX(Tegevus,SMALL(IF(Eesmärk=$H$2,ROW(Tegevus)-MIN(ROW(Tegevus))+1),ROWS($B$3:B50)))&CHAR(10),\"\")","v":""}]
[null,{"$f":"IFERROR(INDEX(Tegevus,SMALL(IF(Eesmärk=$B$2,ROW(Tegevus)-MIN(ROW(Tegevus))+1),ROWS($B$3:B51)))&\" \"&CHAR(10)&(INDEX(Tulem,SMALL(IF(Eesmärk=$B$2,ROW(Tulem)-MIN(ROW(Tulem))+1),ROWS($B$3:B51))))&CHAR(10),\"\")","v":""},null,{"$f":"IFERROR(INDEX(Tegevus,SMALL(IF(Eesmärk=$D$2,ROW(Tegevus)-MIN(ROW(Tegevus))+1),ROWS($B$3:B51)))&CHAR(10),\"\")","v":""},null,{"$f":"IFERROR(INDEX(Tegevus,SMALL(IF(Eesmärk=$F$2,ROW(Tegevus)-MIN(ROW(Tegevus))+1),ROWS($B$3:B51)))&CHAR(10),\"\")","v":""},null,{"$f":"IFERROR(INDEX(Tegevus,SMALL(IF(Eesmärk=$H$2,ROW(Tegevus)-MIN(ROW(Tegevus))+1),ROWS($B$3:B51)))&CHAR(10),\"\")","v":""}]
[null,{"$f":"IFERROR(INDEX(Tegevus,SMALL(IF(Eesmärk=$B$2,ROW(Tegevus)-MIN(ROW(Tegevus))+1),ROWS($B$3:B52)))&\" \"&CHAR(10)&(INDEX(Tulem,SMALL(IF(Eesmärk=$B$2,ROW(Tulem)-MIN(ROW(Tulem))+1),ROWS($B$3:B52))))&CHAR(10),\"\")","v":""},null,{"$f":"IFERROR(INDEX(Tegevus,SMALL(IF(Eesmärk=$D$2,ROW(Tegevus)-MIN(ROW(Tegevus))+1),ROWS($B$3:B52)))&CHAR(10),\"\")","v":""},null,{"$f":"IFERROR(INDEX(Tegevus,SMALL(IF(Eesmärk=$F$2,ROW(Tegevus)-MIN(ROW(Tegevus))+1),ROWS($B$3:B52)))&CHAR(10),\"\")","v":""},null,{"$f":"IFERROR(INDEX(Tegevus,SMALL(IF(Eesmärk=$H$2,ROW(Tegevus)-MIN(ROW(Tegevus))+1),ROWS($B$3:B52)))&CHAR(10),\"\")","v":""}]
[null,{"$f":"IFERROR(INDEX(Tegevus,SMALL(IF(Eesmärk=$B$2,ROW(Tegevus)-MIN(ROW(Tegevus))+1),ROWS($B$3:B53)))&\" \"&CHAR(10)&(INDEX(Tulem,SMALL(IF(Eesmärk=$B$2,ROW(Tulem)-MIN(ROW(Tulem))+1),ROWS($B$3:B53))))&CHAR(10),\"\")","v":""},null,{"$f":"IFERROR(INDEX(Tegevus,SMALL(IF(Eesmärk=$D$2,ROW(Tegevus)-MIN(ROW(Tegevus))+1),ROWS($B$3:B53)))&CHAR(10),\"\")","v":""},null,{"$f":"IFERROR(INDEX(Tegevus,SMALL(IF(Eesmärk=$F$2,ROW(Tegevus)-MIN(ROW(Tegevus))+1),ROWS($B$3:B53)))&CHAR(10),\"\")","v":""},null,{"$f":"IFERROR(INDEX(Tegevus,SMALL(IF(Eesmärk=$H$2,ROW(Tegevus)-MIN(ROW(Tegevus))+1),ROWS($B$3:B53)))&CHAR(10),\"\")","v":""}]
[null,{"$f":"IFERROR(INDEX(Tegevus,SMALL(IF(Eesmärk=$B$2,ROW(Tegevus)-MIN(ROW(Tegevus))+1),ROWS($B$3:B54)))&\" \"&CHAR(10)&(INDEX(Tulem,SMALL(IF(Eesmärk=$B$2,ROW(Tulem)-MIN(ROW(Tulem))+1),ROWS($B$3:B54))))&CHAR(10),\"\")","v":""},null,{"$f":"IFERROR(INDEX(Tegevus,SMALL(IF(Eesmärk=$D$2,ROW(Tegevus)-MIN(ROW(Tegevus))+1),ROWS($B$3:B54)))&CHAR(10),\"\")","v":""},null,{"$f":"IFERROR(INDEX(Tegevus,SMALL(IF(Eesmärk=$F$2,ROW(Tegevus)-MIN(ROW(Tegevus))+1),ROWS($B$3:B54)))&CHAR(10),\"\")","v":""},null,{"$f":"IFERROR(INDEX(Tegevus,SMALL(IF(Eesmärk=$H$2,ROW(Tegevus)-MIN(ROW(Tegevus))+1),ROWS($B$3:B54)))&CHAR(10),\"\")","v":""}]
[null,{"$f":"IFERROR(INDEX(Tegevus,SMALL(IF(Eesmärk=$B$2,ROW(Tegevus)-MIN(ROW(Tegevus))+1),ROWS($B$3:B55)))&\" \"&CHAR(10)&(INDEX(Tulem,SMALL(IF(Eesmärk=$B$2,ROW(Tulem)-MIN(ROW(Tulem))+1),ROWS($B$3:B55))))&CHAR(10),\"\")","v":""},null,{"$f":"IFERROR(INDEX(Tegevus,SMALL(IF(Eesmärk=$D$2,ROW(Tegevus)-MIN(ROW(Tegevus))+1),ROWS($B$3:B55)))&CHAR(10),\"\")","v":""},null,{"$f":"IFERROR(INDEX(Tegevus,SMALL(IF(Eesmärk=$F$2,ROW(Tegevus)-MIN(ROW(Tegevus))+1),ROWS($B$3:B55)))&CHAR(10),\"\")","v":""},null,{"$f":"IFERROR(INDEX(Tegevus,SMALL(IF(Eesmärk=$H$2,ROW(Tegevus)-MIN(ROW(Tegevus))+1),ROWS($B$3:B55)))&CHAR(10),\"\")","v":""}]
[null,{"$f":"IFERROR(INDEX(Tegevus,SMALL(IF(Eesmärk=$B$2,ROW(Tegevus)-MIN(ROW(Tegevus))+1),ROWS($B$3:B56)))&\" \"&CHAR(10)&(INDEX(Tulem,SMALL(IF(Eesmärk=$B$2,ROW(Tulem)-MIN(ROW(Tulem))+1),ROWS($B$3:B56))))&CHAR(10),\"\")","v":""},null,{"$f":"IFERROR(INDEX(Tegevus,SMALL(IF(Eesmärk=$D$2,ROW(Tegevus)-MIN(ROW(Tegevus))+1),ROWS($B$3:B56)))&CHAR(10),\"\")","v":""},null,{"$f":"IFERROR(INDEX(Tegevus,SMALL(IF(Eesmärk=$F$2,ROW(Tegevus)-MIN(ROW(Tegevus))+1),ROWS($B$3:B56)))&CHAR(10),\"\")","v":""},null,{"$f":"IFERROR(INDEX(Tegevus,SMALL(IF(Eesmärk=$H$2,ROW(Tegevus)-MIN(ROW(Tegevus))+1),ROWS($B$3:B56)))&CHAR(10),\"\")","v":""}]
[null,{"$f":"IFERROR(INDEX(Tegevus,SMALL(IF(Eesmärk=$B$2,ROW(Tegevus)-MIN(ROW(Tegevus))+1),ROWS($B$3:B57)))&\" \"&CHAR(10)&(INDEX(Tulem,SMALL(IF(Eesmärk=$B$2,ROW(Tulem)-MIN(ROW(Tulem))+1),ROWS($B$3:B57))))&CHAR(10),\"\")","v":""},null,{"$f":"IFERROR(INDEX(Tegevus,SMALL(IF(Eesmärk=$D$2,ROW(Tegevus)-MIN(ROW(Tegevus))+1),ROWS($B$3:B57)))&CHAR(10),\"\")","v":""},null,{"$f":"IFERROR(INDEX(Tegevus,SMALL(IF(Eesmärk=$F$2,ROW(Tegevus)-MIN(ROW(Tegevus))+1),ROWS($B$3:B57)))&CHAR(10),\"\")","v":""},null,{"$f":"IFERROR(INDEX(Tegevus,SMALL(IF(Eesmärk=$H$2,ROW(Tegevus)-MIN(ROW(Tegevus))+1),ROWS($B$3:B57)))&CHAR(10),\"\")","v":""}]
[null,{"$f":"IFERROR(INDEX(Tegevus,SMALL(IF(Eesmärk=$B$2,ROW(Tegevus)-MIN(ROW(Tegevus))+1),ROWS($B$3:B58)))&\" \"&CHAR(10)&(INDEX(Tulem,SMALL(IF(Eesmärk=$B$2,ROW(Tulem)-MIN(ROW(Tulem))+1),ROWS($B$3:B58))))&CHAR(10),\"\")","v":""},null,{"$f":"IFERROR(INDEX(Tegevus,SMALL(IF(Eesmärk=$D$2,ROW(Tegevus)-MIN(ROW(Tegevus))+1),ROWS($B$3:B58)))&CHAR(10),\"\")","v":""},null,{"$f":"IFERROR(INDEX(Tegevus,SMALL(IF(Eesmärk=$F$2,ROW(Tegevus)-MIN(ROW(Tegevus))+1),ROWS($B$3:B58)))&CHAR(10),\"\")","v":""},null,{"$f":"IFERROR(INDEX(Tegevus,SMALL(IF(Eesmärk=$H$2,ROW(Tegevus)-MIN(ROW(Tegevus))+1),ROWS($B$3:B58)))&CHAR(10),\"\")","v":""}]
[null,{"$f":"IFERROR(INDEX(Tegevus,SMALL(IF(Eesmärk=$B$2,ROW(Tegevus)-MIN(ROW(Tegevus))+1),ROWS($B$3:B59)))&\" \"&CHAR(10)&(INDEX(Tulem,SMALL(IF(Eesmärk=$B$2,ROW(Tulem)-MIN(ROW(Tulem))+1),ROWS($B$3:B59))))&CHAR(10),\"\")","v":""},null,{"$f":"IFERROR(INDEX(Tegevus,SMALL(IF(Eesmärk=$D$2,ROW(Tegevus)-MIN(ROW(Tegevus))+1),ROWS($B$3:B59)))&CHAR(10),\"\")","v":""},null,{"$f":"IFERROR(INDEX(Tegevus,SMALL(IF(Eesmärk=$F$2,ROW(Tegevus)-MIN(ROW(Tegevus))+1),ROWS($B$3:B59)))&CHAR(10),\"\")","v":""},null,{"$f":"IFERROR(INDEX(Tegevus,SMALL(IF(Eesmärk=$H$2,ROW(Tegevus)-MIN(ROW(Tegevus))+1),ROWS($B$3:B59)))&CHAR(10),\"\")","v":""}]
[null,{"$f":"IFERROR(INDEX(Tegevus,SMALL(IF(Eesmärk=$B$2,ROW(Tegevus)-MIN(ROW(Tegevus))+1),ROWS($B$3:B60)))&\" \"&CHAR(10)&(INDEX(Tulem,SMALL(IF(Eesmärk=$B$2,ROW(Tulem)-MIN(ROW(Tulem))+1),ROWS($B$3:B60))))&CHAR(10),\"\")","v":""},null,{"$f":"IFERROR(INDEX(Tegevus,SMALL(IF(Eesmärk=$D$2,ROW(Tegevus)-MIN(ROW(Tegevus))+1),ROWS($B$3:B60)))&CHAR(10),\"\")","v":""},null,{"$f":"IFERROR(INDEX(Tegevus,SMALL(IF(Eesmärk=$F$2,ROW(Tegevus)-MIN(ROW(Tegevus))+1),ROWS($B$3:B60)))&CHAR(10),\"\")","v":""},null,{"$f":"IFERROR(INDEX(Tegevus,SMALL(IF(Eesmärk=$H$2,ROW(Tegevus)-MIN(ROW(Tegevus))+1),ROWS($B$3:B60)))&CHAR(10),\"\")","v":""}]
[null,{"$f":"IFERROR(INDEX(Tegevus,SMALL(IF(Eesmärk=$B$2,ROW(Tegevus)-MIN(ROW(Tegevus))+1),ROWS($B$3:B61)))&\" \"&CHAR(10)&(INDEX(Tulem,SMALL(IF(Eesmärk=$B$2,ROW(Tulem)-MIN(ROW(Tulem))+1),ROWS($B$3:B61))))&CHAR(10),\"\")","v":""},null,{"$f":"IFERROR(INDEX(Tegevus,SMALL(IF(Eesmärk=$D$2,ROW(Tegevus)-MIN(ROW(Tegevus))+1),ROWS($B$3:B61)))&CHAR(10),\"\")","v":""},null,{"$f":"IFERROR(INDEX(Tegevus,SMALL(IF(Eesmärk=$F$2,ROW(Tegevus)-MIN(ROW(Tegevus))+1),ROWS($B$3:B61)))&CHAR(10),\"\")","v":""},null,{"$f":"IFERROR(INDEX(Tegevus,SMALL(IF(Eesmärk=$H$2,ROW(Tegevus)-MIN(ROW(Tegevus))+1),ROWS($B$3:B61)))&CHAR(10),\"\")","v":""}]
[null,{"$f":"IFERROR(INDEX(Tegevus,SMALL(IF(Eesmärk=$B$2,ROW(Tegevus)-MIN(ROW(Tegevus))+1),ROWS($B$3:B62)))&\" \"&CHAR(10)&(INDEX(Tulem,SMALL(IF(Eesmärk=$B$2,ROW(Tulem)-MIN(ROW(Tulem))+1),ROWS($B$3:B62))))&CHAR(10),\"\")","v":""},null,{"$f":"IFERROR(INDEX(Tegevus,SMALL(IF(Eesmärk=$D$2,ROW(Tegevus)-MIN(ROW(Tegevus))+1),ROWS($B$3:B62)))&CHAR(10),\"\")","v":""},null,{"$f":"IFERROR(INDEX(Tegevus,SMALL(IF(Eesmärk=$F$2,ROW(Tegevus)-MIN(ROW(Tegevus))+1),ROWS($B$3:B62)))&CHAR(10),\"\")","v":""},null,{"$f":"IFERROR(INDEX(Tegevus,SMALL(IF(Eesmärk=$H$2,ROW(Tegevus)-MIN(ROW(Tegevus))+1),ROWS($B$3:B62)))&CHAR(10),\"\")","v":""}]
[null,{"$f":"IFERROR(INDEX(Tegevus,SMALL(IF(Eesmärk=$B$2,ROW(Tegevus)-MIN(ROW(Tegevus))+1),ROWS($B$3:B63)))&\" \"&CHAR(10)&(INDEX(Tulem,SMALL(IF(Eesmärk=$B$2,ROW(Tulem)-MIN(ROW(Tulem))+1),ROWS($B$3:B63))))&CHAR(10),\"\")","v":""},null,{"$f":"IFERROR(INDEX(Tegevus,SMALL(IF(Eesmärk=$D$2,ROW(Tegevus)-MIN(ROW(Tegevus))+1),ROWS($B$3:B63)))&CHAR(10),\"\")","v":""},null,{"$f":"IFERROR(INDEX(Tegevus,SMALL(IF(Eesmärk=$F$2,ROW(Tegevus)-MIN(ROW(Tegevus))+1),ROWS($B$3:B63)))&CHAR(10),\"\")","v":""},null,{"$f":"IFERROR(INDEX(Tegevus,SMALL(IF(Eesmärk=$H$2,ROW(Tegevus)-MIN(ROW(Tegevus))+1),ROWS($B$3:B63)))&CHAR(10),\"\")","v":""}]
[null,{"$f":"IFERROR(INDEX(Tegevus,SMALL(IF(Eesmärk=$B$2,ROW(Tegevus)-MIN(ROW(Tegevus))+1),ROWS($B$3:B64)))&\" \"&CHAR(10)&(INDEX(Tulem,SMALL(IF(Eesmärk=$B$2,ROW(Tulem)-MIN(ROW(Tulem))+1),ROWS($B$3:B64))))&CHAR(10),\"\")","v":""},null,{"$f":"IFERROR(INDEX(Tegevus,SMALL(IF(Eesmärk=$D$2,ROW(Tegevus)-MIN(ROW(Tegevus))+1),ROWS($B$3:B64)))&CHAR(10),\"\")","v":""},null,{"$f":"IFERROR(INDEX(Tegevus,SMALL(IF(Eesmärk=$F$2,ROW(Tegevus)-MIN(ROW(Tegevus))+1),ROWS($B$3:B64)))&CHAR(10),\"\")","v":""},null,{"$f":"IFERROR(INDEX(Tegevus,SMALL(IF(Eesmärk=$H$2,ROW(Tegevus)-MIN(ROW(Tegevus))+1),ROWS($B$3:B64)))&CHAR(10),\"\")","v":""}]
[null,{"$f":"IFERROR(INDEX(Tegevus,SMALL(IF(Eesmärk=$B$2,ROW(Tegevus)-MIN(ROW(Tegevus))+1),ROWS($B$3:B65)))&\" \"&CHAR(10)&(INDEX(Tulem,SMALL(IF(Eesmärk=$B$2,ROW(Tulem)-MIN(ROW(Tulem))+1),ROWS($B$3:B65))))&CHAR(10),\"\")","v":""},null,{"$f":"IFERROR(INDEX(Tegevus,SMALL(IF(Eesmärk=$D$2,ROW(Tegevus)-MIN(ROW(Tegevus))+1),ROWS($B$3:B65)))&CHAR(10),\"\")","v":""},null,{"$f":"IFERROR(INDEX(Tegevus,SMALL(IF(Eesmärk=$F$2,ROW(Tegevus)-MIN(ROW(Tegevus))+1),ROWS($B$3:B65)))&CHAR(10),\"\")","v":""},null,{"$f":"IFERROR(INDEX(Tegevus,SMALL(IF(Eesmärk=$H$2,ROW(Tegevus)-MIN(ROW(Tegevus))+1),ROWS($B$3:B65)))&CHAR(10),\"\")","v":""}]
[null,{"$f":"IFERROR(INDEX(Tegevus,SMALL(IF(Eesmärk=$B$2,ROW(Tegevus)-MIN(ROW(Tegevus))+1),ROWS($B$3:B66)))&\" \"&CHAR(10)&(INDEX(Tulem,SMALL(IF(Eesmärk=$B$2,ROW(Tulem)-MIN(ROW(Tulem))+1),ROWS($B$3:B66))))&CHAR(10),\"\")","v":""},null,{"$f":"IFERROR(INDEX(Tegevus,SMALL(IF(Eesmärk=$D$2,ROW(Tegevus)-MIN(ROW(Tegevus))+1),ROWS($B$3:B66)))&CHAR(10),\"\")","v":""},null,{"$f":"IFERROR(INDEX(Tegevus,SMALL(IF(Eesmärk=$F$2,ROW(Tegevus)-MIN(ROW(Tegevus))+1),ROWS($B$3:B66)))&CHAR(10),\"\")","v":""},null,{"$f":"IFERROR(INDEX(Tegevus,SMALL(IF(Eesmärk=$H$2,ROW(Tegevus)-MIN(ROW(Tegevus))+1),ROWS($B$3:B66)))&CHAR(10),\"\")","v":""}]
[null,{"$f":"IFERROR(INDEX(Tegevus,SMALL(IF(Eesmärk=$B$2,ROW(Tegevus)-MIN(ROW(Tegevus))+1),ROWS($B$3:B67)))&\" \"&CHAR(10)&(INDEX(Tulem,SMALL(IF(Eesmärk=$B$2,ROW(Tulem)-MIN(ROW(Tulem))+1),ROWS($B$3:B67))))&CHAR(10),\"\")","v":""},null,{"$f":"IFERROR(INDEX(Tegevus,SMALL(IF(Eesmärk=$D$2,ROW(Tegevus)-MIN(ROW(Tegevus))+1),ROWS($B$3:B67)))&CHAR(10),\"\")","v":""},null,{"$f":"IFERROR(INDEX(Tegevus,SMALL(IF(Eesmärk=$F$2,ROW(Tegevus)-MIN(ROW(Tegevus))+1),ROWS($B$3:B67)))&CHAR(10),\"\")","v":""},null,{"$f":"IFERROR(INDEX(Tegevus,SMALL(IF(Eesmärk=$H$2,ROW(Tegevus)-MIN(ROW(Tegevus))+1),ROWS($B$3:B67)))&CHAR(10),\"\")","v":""}]
[null,{"$f":"IFERROR(INDEX(Tegevus,SMALL(IF(Eesmärk=$B$2,ROW(Tegevus)-MIN(ROW(Tegevus))+1),ROWS($B$3:B68)))&\" \"&CHAR(10)&(INDEX(Tulem,SMALL(IF(Eesmärk=$B$2,ROW(Tulem)-MIN(ROW(Tulem))+1),ROWS($B$3:B68))))&CHAR(10),\"\")","v":""},null,{"$f":"IFERROR(INDEX(Tegevus,SMALL(IF(Eesmärk=$D$2,ROW(Tegevus)-MIN(ROW(Tegevus))+1),ROWS($B$3:B68)))&CHAR(10),\"\")","v":""},null,{"$f":"IFERROR(INDEX(Tegevus,SMALL(IF(Eesmärk=$F$2,ROW(Tegevus)-MIN(ROW(Tegevus))+1),ROWS($B$3:B68)))&CHAR(10),\"\")","v":""},null,{"$f":"IFERROR(INDEX(Tegevus,SMALL(IF(Eesmärk=$H$2,ROW(Tegevus)-MIN(ROW(Tegevus))+1),ROWS($B$3:B68)))&CHAR(10),\"\")","v":""}]
[null,{"$f":"IFERROR(INDEX(Tegevus,SMALL(IF(Eesmärk=$B$2,ROW(Tegevus)-MIN(ROW(Tegevus))+1),ROWS($B$3:B69)))&\" \"&CHAR(10)&(INDEX(Tulem,SMALL(IF(Eesmärk=$B$2,ROW(Tulem)-MIN(ROW(Tulem))+1),ROWS($B$3:B69))))&CHAR(10),\"\")","v":""},null,{"$f":"IFERROR(INDEX(Tegevus,SMALL(IF(Eesmärk=$D$2,ROW(Tegevus)-MIN(ROW(Tegevus))+1),ROWS($B$3:B69)))&CHAR(10),\"\")","v":""},null,{"$f":"IFERROR(INDEX(Tegevus,SMALL(IF(Eesmärk=$F$2,ROW(Tegevus)-MIN(ROW(Tegevus))+1),ROWS($B$3:B69)))&CHAR(10),\"\")","v":""},null,{"$f":"IFERROR(INDEX(Tegevus,SMALL(IF(Eesmärk=$H$2,ROW(Tegevus)-MIN(ROW(Tegevus))+1),ROWS($B$3:B69)))&CHAR(10),\"\")","v":""}]
[null,{"$f":"IFERROR(INDEX(Tegevus,SMALL(IF(Eesmärk=$B$2,ROW(Tegevus)-MIN(ROW(Tegevus))+1),ROWS($B$3:B70)))&\" \"&CHAR(10)&(INDEX(Tulem,SMALL(IF(Eesmärk=$B$2,ROW(Tulem)-MIN(ROW(Tulem))+1),ROWS($B$3:B70))))&CHAR(10),\"\")","v":""},null,{"$f":"IFERROR(INDEX(Tegevus,SMALL(IF(Eesmärk=$D$2,ROW(Tegevus)-MIN(ROW(Tegevus))+1),ROWS($B$3:B70)))&CHAR(10),\"\")","v":""},null,{"$f":"IFERROR(INDEX(Tegevus,SMALL(IF(Eesmärk=$F$2,ROW(Tegevus)-MIN(ROW(Tegevus))+1),ROWS($B$3:B70)))&CHAR(10),\"\")","v":""},null,{"$f":"IFERROR(INDEX(Tegevus,SMALL(IF(Eesmärk=$H$2,ROW(Tegevus)-MIN(ROW(Tegevus))+1),ROWS($B$3:B70)))&CHAR(10),\"\")","v":""}]
[null,{"$f":"IFERROR(INDEX(Tegevus,SMALL(IF(Eesmärk=$B$2,ROW(Tegevus)-MIN(ROW(Tegevus))+1),ROWS($B$3:B71)))&\" \"&CHAR(10)&(INDEX(Tulem,SMALL(IF(Eesmärk=$B$2,ROW(Tulem)-MIN(ROW(Tulem))+1),ROWS($B$3:B71))))&CHAR(10),\"\")","v":""},null,{"$f":"IFERROR(INDEX(Tegevus,SMALL(IF(Eesmärk=$D$2,ROW(Tegevus)-MIN(ROW(Tegevus))+1),ROWS($B$3:B71)))&CHAR(10),\"\")","v":""},null,{"$f":"IFERROR(INDEX(Tegevus,SMALL(IF(Eesmärk=$F$2,ROW(Tegevus)-MIN(ROW(Tegevus))+1),ROWS($B$3:B71)))&CHAR(10),\"\")","v":""},null,{"$f":"IFERROR(INDEX(Tegevus,SMALL(IF(Eesmärk=$H$2,ROW(Tegevus)-MIN(ROW(Tegevus))+1),ROWS($B$3:B71)))&CHAR(10),\"\")","v":""}]
[null,{"$f":"IFERROR(INDEX(Tegevus,SMALL(IF(Eesmärk=$B$2,ROW(Tegevus)-MIN(ROW(Tegevus))+1),ROWS($B$3:B72)))&\" \"&CHAR(10)&(INDEX(Tulem,SMALL(IF(Eesmärk=$B$2,ROW(Tulem)-MIN(ROW(Tulem))+1),ROWS($B$3:B72))))&CHAR(10),\"\")","v":""},null,{"$f":"IFERROR(INDEX(Tegevus,SMALL(IF(Eesmärk=$D$2,ROW(Tegevus)-MIN(ROW(Tegevus))+1),ROWS($B$3:B72)))&CHAR(10),\"\")","v":""},null,{"$f":"IFERROR(INDEX(Tegevus,SMALL(IF(Eesmärk=$F$2,ROW(Tegevus)-MIN(ROW(Tegevus))+1),ROWS($B$3:B72)))&CHAR(10),\"\")","v":""},null,{"$f":"IFERROR(INDEX(Tegevus,SMALL(IF(Eesmärk=$H$2,ROW(Tegevus)-MIN(ROW(Tegevus))+1),ROWS($B$3:B72)))&CHAR(10),\"\")","v":""}]
[null,{"$f":"IFERROR(INDEX(Tegevus,SMALL(IF(Eesmärk=$B$2,ROW(Tegevus)-MIN(ROW(Tegevus))+1),ROWS($B$3:B73)))&\" \"&CHAR(10)&(INDEX(Tulem,SMALL(IF(Eesmärk=$B$2,ROW(Tulem)-MIN(ROW(Tulem))+1),ROWS($B$3:B73))))&CHAR(10),\"\")","v":""},null,{"$f":"IFERROR(INDEX(Tegevus,SMALL(IF(Eesmärk=$D$2,ROW(Tegevus)-MIN(ROW(Tegevus))+1),ROWS($B$3:B73)))&CHAR(10),\"\")","v":""},null,{"$f":"IFERROR(INDEX(Tegevus,SMALL(IF(Eesmärk=$F$2,ROW(Tegevus)-MIN(ROW(Tegevus))+1),ROWS($B$3:B73)))&CHAR(10),\"\")","v":""},null,{"$f":"IFERROR(INDEX(Tegevus,SMALL(IF(Eesmärk=$H$2,ROW(Tegevus)-MIN(ROW(Tegevus))+1),ROWS($B$3:B73)))&CHAR(10),\"\")","v":""}]
[null,{"$f":"IFERROR(INDEX(Tegevus,SMALL(IF(Eesmärk=$B$2,ROW(Tegevus)-MIN(ROW(Tegevus))+1),ROWS($B$3:B74)))&\" \"&CHAR(10)&(INDEX(Tulem,SMALL(IF(Eesmärk=$B$2,ROW(Tulem)-MIN(ROW(Tulem))+1),ROWS($B$3:B74))))&CHAR(10),\"\")","v":""},null,{"$f":"IFERROR(INDEX(Tegevus,SMALL(IF(Eesmärk=$D$2,ROW(Tegevus)-MIN(ROW(Tegevus))+1),ROWS($B$3:B74)))&CHAR(10),\"\")","v":""},null,{"$f":"IFERROR(INDEX(Tegevus,SMALL(IF(Eesmärk=$F$2,ROW(Tegevus)-MIN(ROW(Tegevus))+1),ROWS($B$3:B74)))&CHAR(10),\"\")","v":""},null,{"$f":"IFERROR(INDEX(Tegevus,SMALL(IF(Eesmärk=$H$2,ROW(Tegevus)-MIN(ROW(Tegevus))+1),ROWS($B$3:B74)))&CHAR(10),\"\")","v":""}]
[null,{"$f":"IFERROR(INDEX(Tegevus,SMALL(IF(Eesmärk=$B$2,ROW(Tegevus)-MIN(ROW(Tegevus))+1),ROWS($B$3:B75)))&\" \"&CHAR(10)&(INDEX(Tulem,SMALL(IF(Eesmärk=$B$2,ROW(Tulem)-MIN(ROW(Tulem))+1),ROWS($B$3:B75))))&CHAR(10),\"\")","v":""},null,{"$f":"IFERROR(INDEX(Tegevus,SMALL(IF(Eesmärk=$D$2,ROW(Tegevus)-MIN(ROW(Tegevus))+1),ROWS($B$3:B75)))&CHAR(10),\"\")","v":""},null,{"$f":"IFERROR(INDEX(Tegevus,SMALL(IF(Eesmärk=$F$2,ROW(Tegevus)-MIN(ROW(Tegevus))+1),ROWS($B$3:B75)))&CHAR(10),\"\")","v":""},null,{"$f":"IFERROR(INDEX(Tegevus,SMALL(IF(Eesmärk=$H$2,ROW(Tegevus)-MIN(ROW(Tegevus))+1),ROWS($B$3:B75)))&CHAR(10),\"\")","v":""}]
[null,{"$f":"IFERROR(INDEX(Tegevus,SMALL(IF(Eesmärk=$B$2,ROW(Tegevus)-MIN(ROW(Tegevus))+1),ROWS($B$3:B76)))&\" \"&CHAR(10)&(INDEX(Tulem,SMALL(IF(Eesmärk=$B$2,ROW(Tulem)-MIN(ROW(Tulem))+1),ROWS($B$3:B76))))&CHAR(10),\"\")","v":""},null,{"$f":"IFERROR(INDEX(Tegevus,SMALL(IF(Eesmärk=$D$2,ROW(Tegevus)-MIN(ROW(Tegevus))+1),ROWS($B$3:B76)))&CHAR(10),\"\")","v":""},null,{"$f":"IFERROR(INDEX(Tegevus,SMALL(IF(Eesmärk=$F$2,ROW(Tegevus)-MIN(ROW(Tegevus))+1),ROWS($B$3:B76)))&CHAR(10),\"\")","v":""},null,{"$f":"IFERROR(INDEX(Tegevus,SMALL(IF(Eesmärk=$H$2,ROW(Tegevus)-MIN(ROW(Tegevus))+1),ROWS($B$3:B76)))&CHAR(10),\"\")","v":""}]
[null,{"$f":"IFERROR(INDEX(Tegevus,SMALL(IF(Eesmärk=$B$2,ROW(Tegevus)-MIN(ROW(Tegevus))+1),ROWS($B$3:B77)))&\" \"&CHAR(10)&(INDEX(Tulem,SMALL(IF(Eesmärk=$B$2,ROW(Tulem)-MIN(ROW(Tulem))+1),ROWS($B$3:B77))))&CHAR(10),\"\")","v":""},null,{"$f":"IFERROR(INDEX(Tegevus,SMALL(IF(Eesmärk=$D$2,ROW(Tegevus)-MIN(ROW(Tegevus))+1),ROWS($B$3:B77)))&CHAR(10),\"\")","v":""},null,{"$f":"IFERROR(INDEX(Tegevus,SMALL(IF(Eesmärk=$F$2,ROW(Tegevus)-MIN(ROW(Tegevus))+1),ROWS($B$3:B77)))&CHAR(10),\"\")","v":""},null,{"$f":"IFERROR(INDEX(Tegevus,SMALL(IF(Eesmärk=$H$2,ROW(Tegevus)-MIN(ROW(Tegevus))+1),ROWS($B$3:B77)))&CHAR(10),\"\")","v":""}]
[null,{"$f":"IFERROR(INDEX(Tegevus,SMALL(IF(Eesmärk=$B$2,ROW(Tegevus)-MIN(ROW(Tegevus))+1),ROWS($B$3:B78)))&\" \"&CHAR(10)&(INDEX(Tulem,SMALL(IF(Eesmärk=$B$2,ROW(Tulem)-MIN(ROW(Tulem))+1),ROWS($B$3:B78))))&CHAR(10),\"\")","v":""},null,{"$f":"IFERROR(INDEX(Tegevus,SMALL(IF(Eesmärk=$D$2,ROW(Tegevus)-MIN(ROW(Tegevus))+1),ROWS($B$3:B78)))&CHAR(10),\"\")","v":""},null,{"$f":"IFERROR(INDEX(Tegevus,SMALL(IF(Eesmärk=$F$2,ROW(Tegevus)-MIN(ROW(Tegevus))+1),ROWS($B$3:B78)))&CHAR(10),\"\")","v":""},null,{"$f":"IFERROR(INDEX(Tegevus,SMALL(IF(Eesmärk=$H$2,ROW(Tegevus)-MIN(ROW(Tegevus))+1),ROWS($B$3:B78)))&CHAR(10),\"\")","v":""}]
[null,{"$f":"IFERROR(INDEX(Tegevus,SMALL(IF(Eesmärk=$B$2,ROW(Tegevus)-MIN(ROW(Tegevus))+1),ROWS($B$3:B79)))&\" \"&CHAR(10)&(INDEX(Tulem,SMALL(IF(Eesmärk=$B$2,ROW(Tulem)-MIN(ROW(Tulem))+1),ROWS($B$3:B79))))&CHAR(10),\"\")","v":""},null,{"$f":"IFERROR(INDEX(Tegevus,SMALL(IF(Eesmärk=$D$2,ROW(Tegevus)-MIN(ROW(Tegevus))+1),ROWS($B$3:B79)))&CHAR(10),\"\")","v":""},null,{"$f":"IFERROR(INDEX(Tegevus,SMALL(IF(Eesmärk=$F$2,ROW(Tegevus)-MIN(ROW(Tegevus))+1),ROWS($B$3:B79)))&CHAR(10),\"\")","v":""},null,{"$f":"IFERROR(INDEX(Tegevus,SMALL(IF(Eesmärk=$H$2,ROW(Tegevus)-MIN(ROW(Tegevus))+1),ROWS($B$3:B79)))&CHAR(10),\"\")","v":""}]
[null,{"$f":"IFERROR(INDEX(Tegevus,SMALL(IF(Eesmärk=$B$2,ROW(Tegevus)-MIN(ROW(Tegevus))+1),ROWS($B$3:B80)))&\" \"&CHAR(10)&(INDEX(Tulem,SMALL(IF(Eesmärk=$B$2,ROW(Tulem)-MIN(ROW(Tulem))+1),ROWS($B$3:B80))))&CHAR(10),\"\")","v":""},null,{"$f":"IFERROR(INDEX(Tegevus,SMALL(IF(Eesmärk=$D$2,ROW(Tegevus)-MIN(ROW(Tegevus))+1),ROWS($B$3:B80)))&CHAR(10),\"\")","v":""},null,{"$f":"IFERROR(INDEX(Tegevus,SMALL(IF(Eesmärk=$F$2,ROW(Tegevus)-MIN(ROW(Tegevus))+1),ROWS($B$3:B80)))&CHAR(10),\"\")","v":""},null,{"$f":"IFERROR(INDEX(Tegevus,SMALL(IF(Eesmärk=$H$2,ROW(Tegevus)-MIN(ROW(Tegevus))+1),ROWS($B$3:B80)))&CHAR(10),\"\")","v":""}]
[null,{"$f":"IFERROR(INDEX(Tegevus,SMALL(IF(Eesmärk=$B$2,ROW(Tegevus)-MIN(ROW(Tegevus))+1),ROWS($B$3:B81)))&\" \"&CHAR(10)&(INDEX(Tulem,SMALL(IF(Eesmärk=$B$2,ROW(Tulem)-MIN(ROW(Tulem))+1),ROWS($B$3:B81))))&CHAR(10),\"\")","v":""},null,{"$f":"IFERROR(INDEX(Tegevus,SMALL(IF(Eesmärk=$D$2,ROW(Tegevus)-MIN(ROW(Tegevus))+1),ROWS($B$3:B81)))&CHAR(10),\"\")","v":""},null,{"$f":"IFERROR(INDEX(Tegevus,SMALL(IF(Eesmärk=$F$2,ROW(Tegevus)-MIN(ROW(Tegevus))+1),ROWS($B$3:B81)))&CHAR(10),\"\")","v":""},null,{"$f":"IFERROR(INDEX(Tegevus,SMALL(IF(Eesmärk=$H$2,ROW(Tegevus)-MIN(ROW(Tegevus))+1),ROWS($B$3:B81)))&CHAR(10),\"\")","v":""}]
[null,{"$f":"IFERROR(INDEX(Tegevus,SMALL(IF(Eesmärk=$B$2,ROW(Tegevus)-MIN(ROW(Tegevus))+1),ROWS($B$3:B82)))&\" \"&CHAR(10)&(INDEX(Tulem,SMALL(IF(Eesmärk=$B$2,ROW(Tulem)-MIN(ROW(Tulem))+1),ROWS($B$3:B82))))&CHAR(10),\"\")","v":""},null,{"$f":"IFERROR(INDEX(Tegevus,SMALL(IF(Eesmärk=$D$2,ROW(Tegevus)-MIN(ROW(Tegevus))+1),ROWS($B$3:B82)))&CHAR(10),\"\")","v":""},null,{"$f":"IFERROR(INDEX(Tegevus,SMALL(IF(Eesmärk=$F$2,ROW(Tegevus)-MIN(ROW(Tegevus))+1),ROWS($B$3:B82)))&CHAR(10),\"\")","v":""},null,{"$f":"IFERROR(INDEX(Tegevus,SMALL(IF(Eesmärk=$H$2,ROW(Tegevus)-MIN(ROW(Tegevus))+1),ROWS($B$3:B82)))&CHAR(10),\"\")","v":""}]
[null,{"$f":"IFERROR(INDEX(Tegevus,SMALL(IF(Eesmärk=$B$2,ROW(Tegevus)-MIN(ROW(Tegevus))+1),ROWS($B$3:B83)))&\" \"&CHAR(10)&(INDEX(Tulem,SMALL(IF(Eesmärk=$B$2,ROW(Tulem)-MIN(ROW(Tulem))+1),ROWS($B$3:B83))))&CHAR(10),\"\")","v":""},null,{"$f":"IFERROR(INDEX(Tegevus,SMALL(IF(Eesmärk=$D$2,ROW(Tegevus)-MIN(ROW(Tegevus))+1),ROWS($B$3:B83)))&CHAR(10),\"\")","v":""},null,{"$f":"IFERROR(INDEX(Tegevus,SMALL(IF(Eesmärk=$F$2,ROW(Tegevus)-MIN(ROW(Tegevus))+1),ROWS($B$3:B83)))&CHAR(10),\"\")","v":""},null,{"$f":"IFERROR(INDEX(Tegevus,SMALL(IF(Eesmärk=$H$2,ROW(Tegevus)-MIN(ROW(Tegevus))+1),ROWS($B$3:B83)))&CHAR(10),\"\")","v":""}]
[null,{"$f":"IFERROR(INDEX(Tegevus,SMALL(IF(Eesmärk=$B$2,ROW(Tegevus)-MIN(ROW(Tegevus))+1),ROWS($B$3:B84)))&\" \"&CHAR(10)&(INDEX(Tulem,SMALL(IF(Eesmärk=$B$2,ROW(Tulem)-MIN(ROW(Tulem))+1),ROWS($B$3:B84))))&CHAR(10),\"\")","v":""},null,{"$f":"IFERROR(INDEX(Tegevus,SMALL(IF(Eesmärk=$D$2,ROW(Tegevus)-MIN(ROW(Tegevus))+1),ROWS($B$3:B84)))&CHAR(10),\"\")","v":""},null,{"$f":"IFERROR(INDEX(Tegevus,SMALL(IF(Eesmärk=$F$2,ROW(Tegevus)-MIN(ROW(Tegevus))+1),ROWS($B$3:B84)))&CHAR(10),\"\")","v":""},null,{"$f":"IFERROR(INDEX(Tegevus,SMALL(IF(Eesmärk=$H$2,ROW(Tegevus)-MIN(ROW(Tegevus))+1),ROWS($B$3:B84)))&CHAR(10),\"\")","v":""}]
[null,{"$f":"IFERROR(INDEX(Tegevus,SMALL(IF(Eesmärk=$B$2,ROW(Tegevus)-MIN(ROW(Tegevus))+1),ROWS($B$3:B85)))&\" \"&CHAR(10)&(INDEX(Tulem,SMALL(IF(Eesmärk=$B$2,ROW(Tulem)-MIN(ROW(Tulem))+1),ROWS($B$3:B85))))&CHAR(10),\"\")","v":""},null,{"$f":"IFERROR(INDEX(Tegevus,SMALL(IF(Eesmärk=$D$2,ROW(Tegevus)-MIN(ROW(Tegevus))+1),ROWS($B$3:B85)))&CHAR(10),\"\")","v":""},null,{"$f":"IFERROR(INDEX(Tegevus,SMALL(IF(Eesmärk=$F$2,ROW(Tegevus)-MIN(ROW(Tegevus))+1),ROWS($B$3:B85)))&CHAR(10),\"\")","v":""},null,{"$f":"IFERROR(INDEX(Tegevus,SMALL(IF(Eesmärk=$H$2,ROW(Tegevus)-MIN(ROW(Tegevus))+1),ROWS($B$3:B85)))&CHAR(10),\"\")","v":""}]
[null,{"$f":"IFERROR(INDEX(Tegevus,SMALL(IF(Eesmärk=$B$2,ROW(Tegevus)-MIN(ROW(Tegevus))+1),ROWS($B$3:B86)))&\" \"&CHAR(10)&(INDEX(Tulem,SMALL(IF(Eesmärk=$B$2,ROW(Tulem)-MIN(ROW(Tulem))+1),ROWS($B$3:B86))))&CHAR(10),\"\")","v":""},null,{"$f":"IFERROR(INDEX(Tegevus,SMALL(IF(Eesmärk=$D$2,ROW(Tegevus)-MIN(ROW(Tegevus))+1),ROWS($B$3:B86)))&CHAR(10),\"\")","v":""},null,{"$f":"IFERROR(INDEX(Tegevus,SMALL(IF(Eesmärk=$F$2,ROW(Tegevus)-MIN(ROW(Tegevus))+1),ROWS($B$3:B86)))&CHAR(10),\"\")","v":""},null,{"$f":"IFERROR(INDEX(Tegevus,SMALL(IF(Eesmärk=$H$2,ROW(Tegevus)-MIN(ROW(Tegevus))+1),ROWS($B$3:B86)))&CHAR(10),\"\")","v":""}]
[null,{"$f":"IFERROR(INDEX(Tegevus,SMALL(IF(Eesmärk=$B$2,ROW(Tegevus)-MIN(ROW(Tegevus))+1),ROWS($B$3:B87)))&\" \"&CHAR(10)&(INDEX(Tulem,SMALL(IF(Eesmärk=$B$2,ROW(Tulem)-MIN(ROW(Tulem))+1),ROWS($B$3:B87))))&CHAR(10),\"\")","v":""},null,{"$f":"IFERROR(INDEX(Tegevus,SMALL(IF(Eesmärk=$D$2,ROW(Tegevus)-MIN(ROW(Tegevus))+1),ROWS($B$3:B87)))&CHAR(10),\"\")","v":""},null,{"$f":"IFERROR(INDEX(Tegevus,SMALL(IF(Eesmärk=$F$2,ROW(Tegevus)-MIN(ROW(Tegevus))+1),ROWS($B$3:B87)))&CHAR(10),\"\")","v":""},null,{"$f":"IFERROR(INDEX(Tegevus,SMALL(IF(Eesmärk=$H$2,ROW(Tegevus)-MIN(ROW(Tegevus))+1),ROWS($B$3:B87)))&CHAR(10),\"\")","v":""}]
[null,{"$f":"IFERROR(INDEX(Tegevus,SMALL(IF(Eesmärk=$B$2,ROW(Tegevus)-MIN(ROW(Tegevus))+1),ROWS($B$3:B88)))&\" \"&CHAR(10)&(INDEX(Tulem,SMALL(IF(Eesmärk=$B$2,ROW(Tulem)-MIN(ROW(Tulem))+1),ROWS($B$3:B88))))&CHAR(10),\"\")","v":""},null,{"$f":"IFERROR(INDEX(Tegevus,SMALL(IF(Eesmärk=$D$2,ROW(Tegevus)-MIN(ROW(Tegevus))+1),ROWS($B$3:B88)))&CHAR(10),\"\")","v":""},null,{"$f":"IFERROR(INDEX(Tegevus,SMALL(IF(Eesmärk=$F$2,ROW(Tegevus)-MIN(ROW(Tegevus))+1),ROWS($B$3:B88)))&CHAR(10),\"\")","v":""},null,{"$f":"IFERROR(INDEX(Tegevus,SMALL(IF(Eesmärk=$H$2,ROW(Tegevus)-MIN(ROW(Tegevus))+1),ROWS($B$3:B88)))&CHAR(10),\"\")","v":""}]
[null,{"$f":"IFERROR(INDEX(Tegevus,SMALL(IF(Eesmärk=$B$2,ROW(Tegevus)-MIN(ROW(Tegevus))+1),ROWS($B$3:B89)))&\" \"&CHAR(10)&(INDEX(Tulem,SMALL(IF(Eesmärk=$B$2,ROW(Tulem)-MIN(ROW(Tulem))+1),ROWS($B$3:B89))))&CHAR(10),\"\")","v":""},null,{"$f":"IFERROR(INDEX(Tegevus,SMALL(IF(Eesmärk=$D$2,ROW(Tegevus)-MIN(ROW(Tegevus))+1),ROWS($B$3:B89)))&CHAR(10),\"\")","v":""},null,{"$f":"IFERROR(INDEX(Tegevus,SMALL(IF(Eesmärk=$F$2,ROW(Tegevus)-MIN(ROW(Tegevus))+1),ROWS($B$3:B89)))&CHAR(10),\"\")","v":""},null,{"$f":"IFERROR(INDEX(Tegevus,SMALL(IF(Eesmärk=$H$2,ROW(Tegevus)-MIN(ROW(Tegevus))+1),ROWS($B$3:B89)))&CHAR(10),\"\")","v":""}]
[null,{"$f":"IFERROR(INDEX(Tegevus,SMALL(IF(Eesmärk=$B$2,ROW(Tegevus)-MIN(ROW(Tegevus))+1),ROWS($B$3:B90)))&\" \"&CHAR(10)&(INDEX(Tulem,SMALL(IF(Eesmärk=$B$2,ROW(Tulem)-MIN(ROW(Tulem))+1),ROWS($B$3:B90))))&CHAR(10),\"\")","v":""},null,{"$f":"IFERROR(INDEX(Tegevus,SMALL(IF(Eesmärk=$D$2,ROW(Tegevus)-MIN(ROW(Tegevus))+1),ROWS($B$3:B90)))&CHAR(10),\"\")","v":""},null,{"$f":"IFERROR(INDEX(Tegevus,SMALL(IF(Eesmärk=$F$2,ROW(Tegevus)-MIN(ROW(Tegevus))+1),ROWS($B$3:B90)))&CHAR(10),\"\")","v":""},null,{"$f":"IFERROR(INDEX(Tegevus,SMALL(IF(Eesmärk=$H$2,ROW(Tegevus)-MIN(ROW(Tegevus))+1),ROWS($B$3:B90)))&CHAR(10),\"\")","v":""}]
[null,{"$f":"IFERROR(INDEX(Tegevus,SMALL(IF(Eesmärk=$B$2,ROW(Tegevus)-MIN(ROW(Tegevus))+1),ROWS($B$3:B91)))&\" \"&CHAR(10)&(INDEX(Tulem,SMALL(IF(Eesmärk=$B$2,ROW(Tulem)-MIN(ROW(Tulem))+1),ROWS($B$3:B91))))&CHAR(10),\"\")","v":""},null,{"$f":"IFERROR(INDEX(Tegevus,SMALL(IF(Eesmärk=$D$2,ROW(Tegevus)-MIN(ROW(Tegevus))+1),ROWS($B$3:B91)))&CHAR(10),\"\")","v":""},null,{"$f":"IFERROR(INDEX(Tegevus,SMALL(IF(Eesmärk=$F$2,ROW(Tegevus)-MIN(ROW(Tegevus))+1),ROWS($B$3:B91)))&CHAR(10),\"\")","v":""},null,{"$f":"IFERROR(INDEX(Tegevus,SMALL(IF(Eesmärk=$H$2,ROW(Tegevus)-MIN(ROW(Tegevus))+1),ROWS($B$3:B91)))&CHAR(10),\"\")","v":""}]
[null,{"$f":"IFERROR(INDEX(Tegevus,SMALL(IF(Eesmärk=$B$2,ROW(Tegevus)-MIN(ROW(Tegevus))+1),ROWS($B$3:B92)))&\" \"&CHAR(10)&(INDEX(Tulem,SMALL(IF(Eesmärk=$B$2,ROW(Tulem)-MIN(ROW(Tulem))+1),ROWS($B$3:B92))))&CHAR(10),\"\")","v":""},null,{"$f":"IFERROR(INDEX(Tegevus,SMALL(IF(Eesmärk=$D$2,ROW(Tegevus)-MIN(ROW(Tegevus))+1),ROWS($B$3:B92)))&CHAR(10),\"\")","v":""},null,{"$f":"IFERROR(INDEX(Tegevus,SMALL(IF(Eesmärk=$F$2,ROW(Tegevus)-MIN(ROW(Tegevus))+1),ROWS($B$3:B92)))&CHAR(10),\"\")","v":""},null,{"$f":"IFERROR(INDEX(Tegevus,SMALL(IF(Eesmärk=$H$2,ROW(Tegevus)-MIN(ROW(Tegevus))+1),ROWS($B$3:B92)))&CHAR(10),\"\")","v":""}]
[null,{"$f":"IFERROR(INDEX(Tegevus,SMALL(IF(Eesmärk=$B$2,ROW(Tegevus)-MIN(ROW(Tegevus))+1),ROWS($B$3:B93)))&\" \"&CHAR(10)&(INDEX(Tulem,SMALL(IF(Eesmärk=$B$2,ROW(Tulem)-MIN(ROW(Tulem))+1),ROWS($B$3:B93))))&CHAR(10),\"\")","v":""},null,{"$f":"IFERROR(INDEX(Tegevus,SMALL(IF(Eesmärk=$D$2,ROW(Tegevus)-MIN(ROW(Tegevus))+1),ROWS($B$3:B93)))&CHAR(10),\"\")","v":""},null,{"$f":"IFERROR(INDEX(Tegevus,SMALL(IF(Eesmärk=$F$2,ROW(Tegevus)-MIN(ROW(Tegevus))+1),ROWS($B$3:B93)))&CHAR(10),\"\")","v":""},null,{"$f":"IFERROR(INDEX(Tegevus,SMALL(IF(Eesmärk=$H$2,ROW(Tegevus)-MIN(ROW(Tegevus))+1),ROWS($B$3:B93)))&CHAR(10),\"\")","v":""}]
[null,{"$f":"IFERROR(INDEX(Tegevus,SMALL(IF(Eesmärk=$B$2,ROW(Tegevus)-MIN(ROW(Tegevus))+1),ROWS($B$3:B94)))&\" \"&CHAR(10)&(INDEX(Tulem,SMALL(IF(Eesmärk=$B$2,ROW(Tulem)-MIN(ROW(Tulem))+1),ROWS($B$3:B94))))&CHAR(10),\"\")","v":""},null,{"$f":"IFERROR(INDEX(Tegevus,SMALL(IF(Eesmärk=$D$2,ROW(Tegevus)-MIN(ROW(Tegevus))+1),ROWS($B$3:B94)))&CHAR(10),\"\")","v":""},null,{"$f":"IFERROR(INDEX(Tegevus,SMALL(IF(Eesmärk=$F$2,ROW(Tegevus)-MIN(ROW(Tegevus))+1),ROWS($B$3:B94)))&CHAR(10),\"\")","v":""},null,{"$f":"IFERROR(INDEX(Tegevus,SMALL(IF(Eesmärk=$H$2,ROW(Tegevus)-MIN(ROW(Tegevus))+1),ROWS($B$3:B94)))&CHAR(10),\"\")","v":""}]
[null,{"$f":"IFERROR(INDEX(Tegevus,SMALL(IF(Eesmärk=$B$2,ROW(Tegevus)-MIN(ROW(Tegevus))+1),ROWS($B$3:B95)))&\" \"&CHAR(10)&(INDEX(Tulem,SMALL(IF(Eesmärk=$B$2,ROW(Tulem)-MIN(ROW(Tulem))+1),ROWS($B$3:B95))))&CHAR(10),\"\")","v":""},null,{"$f":"IFERROR(INDEX(Tegevus,SMALL(IF(Eesmärk=$D$2,ROW(Tegevus)-MIN(ROW(Tegevus))+1),ROWS($B$3:B95)))&CHAR(10),\"\")","v":""},null,{"$f":"IFERROR(INDEX(Tegevus,SMALL(IF(Eesmärk=$F$2,ROW(Tegevus)-MIN(ROW(Tegevus))+1),ROWS($B$3:B95)))&CHAR(10),\"\")","v":""},null,{"$f":"IFERROR(INDEX(Tegevus,SMALL(IF(Eesmärk=$H$2,ROW(Tegevus)-MIN(ROW(Tegevus))+1),ROWS($B$3:B95)))&CHAR(10),\"\")","v":""}]
[null,{"$f":"IFERROR(INDEX(Tegevus,SMALL(IF(Eesmärk=$B$2,ROW(Tegevus)-MIN(ROW(Tegevus))+1),ROWS($B$3:B96)))&\" \"&CHAR(10)&(INDEX(Tulem,SMALL(IF(Eesmärk=$B$2,ROW(Tulem)-MIN(ROW(Tulem))+1),ROWS($B$3:B96))))&CHAR(10),\"\")","v":""},null,{"$f":"IFERROR(INDEX(Tegevus,SMALL(IF(Eesmärk=$D$2,ROW(Tegevus)-MIN(ROW(Tegevus))+1),ROWS($B$3:B96)))&CHAR(10),\"\")","v":""},null,{"$f":"IFERROR(INDEX(Tegevus,SMALL(IF(Eesmärk=$F$2,ROW(Tegevus)-MIN(ROW(Tegevus))+1),ROWS($B$3:B96)))&CHAR(10),\"\")","v":""},null,{"$f":"IFERROR(INDEX(Tegevus,SMALL(IF(Eesmärk=$H$2,ROW(Tegevus)-MIN(ROW(Tegevus))+1),ROWS($B$3:B96)))&CHAR(10),\"\")","v":""}]
[null,{"$f":"IFERROR(INDEX(Tegevus,SMALL(IF(Eesmärk=$B$2,ROW(Tegevus)-MIN(ROW(Tegevus))+1),ROWS($B$3:B97)))&\" \"&CHAR(10)&(INDEX(Tulem,SMALL(IF(Eesmärk=$B$2,ROW(Tulem)-MIN(ROW(Tulem))+1),ROWS($B$3:B97))))&CHAR(10),\"\")","v":""},null,{"$f":"IFERROR(INDEX(Tegevus,SMALL(IF(Eesmärk=$D$2,ROW(Tegevus)-MIN(ROW(Tegevus))+1),ROWS($B$3:B97)))&CHAR(10),\"\")","v":""},null,{"$f":"IFERROR(INDEX(Tegevus,SMALL(IF(Eesmärk=$F$2,ROW(Tegevus)-MIN(ROW(Tegevus))+1),ROWS($B$3:B97)))&CHAR(10),\"\")","v":""},null,{"$f":"IFERROR(INDEX(Tegevus,SMALL(IF(Eesmärk=$H$2,ROW(Tegevus)-MIN(ROW(Tegevus))+1),ROWS($B$3:B97)))&CHAR(10),\"\")","v":""}]
[null,{"$f":"IFERROR(INDEX(Tegevus,SMALL(IF(Eesmärk=$B$2,ROW(Tegevus)-MIN(ROW(Tegevus))+1),ROWS($B$3:B98)))&\" \"&CHAR(10)&(INDEX(Tulem,SMALL(IF(Eesmärk=$B$2,ROW(Tulem)-MIN(ROW(Tulem))+1),ROWS($B$3:B98))))&CHAR(10),\"\")","v":""},null,{"$f":"IFERROR(INDEX(Tegevus,SMALL(IF(Eesmärk=$D$2,ROW(Tegevus)-MIN(ROW(Tegevus))+1),ROWS($B$3:B98)))&CHAR(10),\"\")","v":""},null,{"$f":"IFERROR(INDEX(Tegevus,SMALL(IF(Eesmärk=$F$2,ROW(Tegevus)-MIN(ROW(Tegevus))+1),ROWS($B$3:B98)))&CHAR(10),\"\")","v":""},null,{"$f":"IFERROR(INDEX(Tegevus,SMALL(IF(Eesmärk=$H$2,ROW(Tegevus)-MIN(ROW(Tegevus))+1),ROWS($B$3:B98)))&CHAR(10),\"\")","v":""}]
[null,{"$f":"IFERROR(INDEX(Tegevus,SMALL(IF(Eesmärk=$B$2,ROW(Tegevus)-MIN(ROW(Tegevus))+1),ROWS($B$3:B99)))&\" \"&CHAR(10)&(INDEX(Tulem,SMALL(IF(Eesmärk=$B$2,ROW(Tulem)-MIN(ROW(Tulem))+1),ROWS($B$3:B99))))&CHAR(10),\"\")","v":""},null,{"$f":"IFERROR(INDEX(Tegevus,SMALL(IF(Eesmärk=$D$2,ROW(Tegevus)-MIN(ROW(Tegevus))+1),ROWS($B$3:B99)))&CHAR(10),\"\")","v":""},null,{"$f":"IFERROR(INDEX(Tegevus,SMALL(IF(Eesmärk=$F$2,ROW(Tegevus)-MIN(ROW(Tegevus))+1),ROWS($B$3:B99)))&CHAR(10),\"\")","v":""},null,{"$f":"IFERROR(INDEX(Tegevus,SMALL(IF(Eesmärk=$H$2,ROW(Tegevus)-MIN(ROW(Tegevus))+1),ROWS($B$3:B99)))&CHAR(10),\"\")","v":""}]
[null,{"$f":"IFERROR(INDEX(Tegevus,SMALL(IF(Eesmärk=$B$2,ROW(Tegevus)-MIN(ROW(Tegevus))+1),ROWS($B$3:B100)))&\" \"&CHAR(10)&(INDEX(Tulem,SMALL(IF(Eesmärk=$B$2,ROW(Tulem)-MIN(ROW(Tulem))+1),ROWS($B$3:B100))))&CHAR(10),\"\")","v":""},null,{"$f":"IFERROR(INDEX(Tegevus,SMALL(IF(Eesmärk=$D$2,ROW(Tegevus)-MIN(ROW(Tegevus))+1),ROWS($B$3:B100)))&CHAR(10),\"\")","v":""},null,{"$f":"IFERROR(INDEX(Tegevus,SMALL(IF(Eesmärk=$F$2,ROW(Tegevus)-MIN(ROW(Tegevus))+1),ROWS($B$3:B100)))&CHAR(10),\"\")","v":""},null,{"$f":"IFERROR(INDEX(Tegevus,SMALL(IF(Eesmärk=$H$2,ROW(Tegevus)-MIN(ROW(Tegevus))+1),ROWS($B$3:B100)))&CHAR(10),\"\")","v":""}]

{"sheet":"Teave","index":2,"n_rows":6,"n_cols":1,"rows_kept":6}
["Töövihiku teave"]
["Ekraanilugeri juhised"]
["Selles töövihikus on 3 töölehte. \n\nTegevuskava andmed\nKiirtegevuskava\nTeave\n\nIga töölehe juhised leiate vastava töölehe veerust A. Juhised algavad alati lahtrist A1. Need on lisatud peittekstina. Iga juhis annab ülevaate sellel real olevast teabest. Järgmiste toimingute juhised leiate lahtritest A2, A3 jne, kui pole teisiti kirjeldatud. Näiteks võib järgmise toimingu juhiseks olla tekst „jätkake lahtrist A6“. \n\nPeitteksti ei saa printida.\n\nMõnelt töölehelt juhiste eemaldamiseks kustutage veerg A.\n"]
["Töövihiku teave"]
["Sisestage teetähise teave tegevuskava andmete töölehe.  Sortige kindlasti tähtsuse alusel ja seejärel teetähise või tegevuse alusel, et hankida vaated kahaneva tähtsusega – suurima tähtsusega üksused kuvatakse üleval. Tegevuskava kiirtegevuskava töölehel värskendatakse automaatselt.\n"]
["See on viimane juhis sellel töölehel."]